{"text_format":"1","workbook":"xlsx","n_sheets":3,"sheets":["МЗшк65","LOG","МЗТПУ"],"not_rendered":{"charts":0,"images":0,"macros":1,"external_links":0,"defined_names":1,"comments":0,"pivot_tables":0},"unopened":[],"bounds":{"document_bytes":16777216,"sheet_cells":100000,"rows_first":2000,"rows_last":500,"rows_between":2000,"halvings":0,"cell_chars":16384,"cell_head_chars":4096},"cells_cut":0,"cells_raw":0,"read":"whole","date_system":"1900"}

{"sheet":"МЗшк65","index":0,"n_rows":452,"n_cols":14,"rows_kept":452,"cut":false,"hidden":false,"merged":[[451,0,451,10],[447,0,447,7],[447,8,447,10],[448,0,448,7],[450,0,450,3],[450,4,450,7],[450,8,450,10],[434,3,434,5],[442,8,442,10],[436,0,436,2],[436,3,436,5],[435,0,435,2],[435,3,435,5],[435,6,436,8],[441,0,441,7],[438,0,438,3],[438,4,438,7],[439,0,439,7],[442,0,442,3],[442,4,442,7],[446,0,446,7],[446,8,446,10],[443,0,443,7],[420,0,422,0],[421,3,422,3],[421,4,421,5],[426,0,426,3],[428,0,428,10],[429,0,429,3],[429,4,429,7],[429,8,429,10],[432,0,432,3],[433,0,433,2],[434,0,434,2],[430,8,430,10],[430,0,430,7],[434,6,434,8],[433,3,433,5],[443,8,443,10],[444,0,444,7],[444,8,444,10],[433,6,433,8],[410,6,411,8],[411,3,412,3],[411,4,411,5],[410,0,412,0],[414,0,415,0],[417,0,417,3],[419,0,419,4],[420,1,422,1],[420,2,422,2],[420,3,420,5],[420,6,421,8],[410,1,412,1],[410,2,412,2],[410,3,410,5],[399,2,399,3],[399,4,399,5],[405,0,405,10],[401,2,401,3],[401,4,401,5],[402,0,402,1],[403,0,403,1],[403,2,403,3],[403,4,403,5],[402,2,402,3],[402,4,402,5],[406,8,406,9],[407,0,407,4],[407,8,407,9],[408,0,408,4],[409,0,409,4],[406,0,406,6],[394,0,394,5],[396,0,396,4],[366,0,369,0],[366,1,373,1],[387,0,387,4],[389,0,389,4],[392,0,392,4],[393,0,393,5],[385,0,385,3],[366,2,369,2],[398,0,398,1],[400,0,400,1],[400,2,400,3],[400,4,400,5],[401,0,401,1],[398,2,398,3],[398,4,398,5],[399,0,399,1],[382,1,383,1],[378,6,379,8],[377,0,377,4],[378,0,380,0],[370,0,373,0],[370,2,373,2],[375,0,375,3],[360,0,360,4],[361,0,361,4],[378,9,379,11],[379,3,380,3],[379,4,379,5],[378,1,380,1],[378,2,380,2],[378,3,378,5],[358,8,358,9],[363,3,364,3],[363,4,363,5],[353,2,353,3],[353,4,353,5],[354,2,354,3],[362,2,364,2],[362,3,362,5],[362,6,362,8],[358,0,358,2],[358,3,358,6],[353,0,353,1],[354,0,354,1],[355,2,355,3],[355,4,355,5],[355,0,355,1],[362,0,364,0],[362,1,364,1],[359,3,359,6],[359,8,359,9],[350,0,350,1],[351,0,351,1],[351,2,351,3],[351,4,351,5],[350,2,350,3],[350,4,350,5],[354,4,354,5],[359,0,359,2],[325,4,328,4],[325,0,327,0],[325,1,327,3],[352,0,352,1],[352,2,352,3],[352,4,352,5],[344,0,344,4],[345,0,345,5],[346,0,346,4],[348,0,348,4],[339,0,339,4],[341,0,341,4],[330,1,335,1],[330,2,335,2],[330,4,335,4],[337,0,337,3],[327,10,328,10],[327,11,328,11],[327,12,328,12],[325,5,325,7],[327,6,328,6],[327,7,328,7],[327,8,328,8],[327,9,328,9],[327,13,328,13],[325,8,326,10],[325,11,326,13],[326,6,326,7],[324,0,324,4],[312,3,314,3],[315,0,317,0],[315,3,317,3],[318,0,320,0],[318,3,320,3],[303,4,320,4],[306,0,308,0],[306,3,308,3],[322,0,322,3],[295,8,295,9],[295,0,295,2],[295,3,295,6],[297,0,297,4],[298,0,298,4],[290,0,290,1],[290,2,290,3],[290,4,290,5],[303,0,305,0],[303,1,320,1],[303,2,320,2],[303,3,305,3],[309,0,311,0],[309,3,311,3],[312,0,314,0],[292,0,292,1],[292,2,292,3],[291,2,291,3],[291,4,291,5],[291,0,291,1],[292,4,292,5],[300,10,301,10],[299,5,299,7],[296,0,296,2],[296,3,296,6],[296,8,296,9],[299,0,301,0],[299,1,300,3],[299,4,301,4],[299,8,299,10],[300,5,301,5],[300,6,300,7],[300,8,301,8],[300,9,301,9],[274,0,274,3],[283,0,283,5],[285,0,285,4],[276,0,276,4],[278,0,278,5],[279,4,279,5],[280,4,280,5],[281,0,281,4],[282,0,282,5],[287,0,287,1],[287,2,287,3],[287,4,287,5],[289,0,289,1],[288,0,288,1],[288,2,288,3],[288,4,288,5],[289,2,289,3],[289,4,289,5],[269,1,270,1],[269,3,272,3],[271,1,272,1],[261,0,261,3],[263,0,263,4],[264,0,266,0],[264,1,266,2],[264,3,267,3],[264,4,264,6],[266,7,267,7],[264,10,265,12],[265,4,267,4],[265,5,265,6],[266,5,267,5],[266,6,267,6],[266,11,267,11],[264,7,265,9],[266,12,267,12],[266,8,267,8],[266,9,267,9],[266,10,267,10],[248,0,250,0],[248,1,253,1],[248,2,250,2],[248,3,253,3],[251,0,253,0],[251,2,253,2],[254,0,256,0],[254,1,259,1],[254,2,256,2],[254,3,259,3],[257,0,259,0],[257,2,259,2],[241,0,241,4],[242,0,242,4],[243,0,246,0],[243,1,245,2],[243,3,246,3],[243,4,243,6],[243,7,243,9],[244,4,246,4],[244,5,244,6],[244,7,246,7],[244,8,246,8],[244,9,246,9],[245,5,246,5],[245,6,246,6],[234,2,234,3],[234,4,234,5],[235,0,235,1],[235,2,235,3],[235,4,235,5],[239,0,239,2],[239,3,239,6],[239,8,239,9],[240,0,240,2],[240,3,240,6],[240,8,240,9],[236,0,236,1],[236,2,236,3],[236,4,236,5],[232,4,232,5],[218,0,218,3],[220,0,220,4],[222,0,222,4],[225,0,225,4],[226,0,226,5],[227,0,227,4],[229,0,229,4],[215,2,216,2],[233,0,233,1],[233,2,233,3],[233,4,233,5],[234,0,234,1],[208,11,209,13],[209,5,211,5],[209,6,209,7],[210,6,211,6],[210,7,211,7],[210,11,211,11],[210,12,211,12],[210,13,211,13],[208,8,209,10],[210,8,211,8],[208,0,210,0],[208,1,210,3],[231,0,231,1],[231,2,231,3],[231,4,231,5],[213,1,216,1],[213,2,214,2],[213,4,216,4],[232,0,232,1],[232,2,232,3],[210,10,211,10],[192,1,197,1],[192,2,197,2],[192,3,194,3],[192,4,203,4],[195,0,197,0],[195,3,197,3],[189,8,190,8],[198,3,200,3],[208,5,208,7],[201,3,203,3],[198,2,203,2],[208,4,211,4],[198,1,203,1],[201,0,203,0],[205,0,205,3],[210,9,211,9],[192,0,194,0],[198,0,200,0],[188,6,188,7],[207,0,207,4],[180,0,180,1],[180,2,180,3],[180,4,180,5],[183,0,183,2],[184,0,184,2],[184,3,184,6],[187,8,187,10],[188,5,190,5],[189,9,190,9],[189,10,190,10],[189,7,190,7],[183,3,183,6],[184,8,184,9],[185,0,185,4],[186,0,186,4],[187,0,190,0],[187,1,189,3],[187,4,190,4],[183,8,183,9],[189,6,190,6],[178,0,178,1],[178,2,178,3],[178,4,178,5],[179,0,179,1],[179,2,179,3],[179,4,179,5],[176,0,176,1],[176,2,176,3],[176,4,176,5],[177,0,177,1],[177,2,177,3],[177,4,177,5],[166,0,166,4],[169,0,169,4],[162,0,162,3],[164,0,164,4],[170,0,170,5],[171,0,171,3],[173,0,173,4],[175,0,175,1],[175,2,175,3],[175,4,175,5],[156,12,157,12],[156,11,157,11],[156,13,157,13],[150,0,150,3],[144,4,148,4],[152,0,152,4],[154,0,156,0],[154,1,156,3],[154,11,155,13],[155,5,157,5],[155,6,155,7],[156,6,157,6],[156,7,157,7],[156,8,157,8],[154,5,154,7],[154,8,155,10],[156,10,157,10],[156,9,157,9],[154,4,157,4],[144,0,148,0],[144,1,148,1],[139,4,143,4],[135,8,137,8],[135,6,135,7],[134,4,137,4],[144,2,148,2],[144,3,148,3],[139,2,143,2],[139,3,143,3],[139,0,143,0],[139,1,143,1],[134,1,136,3],[135,5,137,5],[134,8,134,10],[135,10,137,10],[129,0,129,2],[129,3,129,6],[134,5,134,7],[136,6,137,6],[130,0,130,2],[130,3,130,4],[130,8,130,9],[131,0,131,4],[129,8,129,9],[132,0,132,4],[134,0,137,0],[136,7,137,7],[135,9,137,9],[124,0,124,1],[124,2,124,3],[124,4,124,5],[125,0,125,1],[125,2,125,3],[125,4,125,5],[126,0,126,1],[121,4,121,5],[122,0,122,1],[122,2,122,3],[123,0,123,1],[123,2,123,3],[123,4,123,5],[126,2,126,3],[126,4,126,5],[100,5,100,7],[110,0,110,4],[122,4,122,5],[117,0,117,4],[119,0,119,4],[121,0,121,1],[121,2,121,3],[102,9,103,9],[102,12,103,12],[102,8,103,8],[102,13,103,13],[116,0,116,5],[102,11,103,11],[86,3,90,3],[86,4,90,4],[91,0,95,0],[91,1,95,1],[91,2,95,2],[91,3,95,3],[100,8,101,10],[100,11,101,13],[101,5,103,5],[86,0,90,0],[112,0,112,4],[115,0,115,4],[108,0,108,3],[102,10,103,10],[99,0,99,4],[100,0,102,0],[100,1,102,3],[100,4,103,4],[101,6,101,7],[102,6,103,6],[102,7,103,7],[91,4,95,4],[81,5,81,7],[97,0,97,3],[80,0,80,4],[81,0,84,0],[81,1,83,3],[81,4,84,4],[86,2,90,2],[86,1,90,1],[78,0,78,2],[78,3,78,4],[81,8,81,10],[82,5,84,5],[82,6,82,7],[82,8,84,8],[82,9,84,9],[82,10,84,10],[83,6,84,6],[83,7,84,7],[78,8,78,9],[79,0,79,4],[77,8,77,9],[71,2,71,3],[71,4,71,5],[72,0,72,1],[72,2,72,3],[72,4,72,5],[69,2,69,3],[69,4,69,5],[55,0,55,3],[57,0,57,4],[59,0,59,4],[73,2,73,3],[73,4,73,5],[71,0,71,1],[69,0,69,1],[70,0,70,1],[70,2,70,3],[70,4,70,5],[77,0,77,2],[77,3,77,6],[73,0,73,1],[74,0,74,1],[74,2,74,3],[74,4,74,5],[48,8,49,10],[48,0,51,0],[48,1,50,3],[48,4,51,4],[65,0,65,4],[67,0,67,4],[50,9,51,9],[50,10,51,10],[50,12,51,12],[50,11,51,11],[63,0,63,4],[64,0,64,3],[48,11,49,13],[49,5,51,5],[49,6,49,7],[50,6,51,6],[50,7,51,7],[50,8,51,8],[50,13,51,13],[48,5,48,7],[47,0,47,4],[40,0,43,0],[40,1,43,1],[40,2,43,2],[40,3,43,3],[40,4,43,4],[45,0,45,3],[32,0,32,2],[32,3,32,4],[32,8,32,9],[35,5,35,7],[33,0,33,4],[34,0,34,4],[35,0,38,0],[35,1,37,3],[35,4,37,4],[18,2,18,6],[19,2,19,6],[35,8,36,10],[36,5,38,5],[36,6,36,7],[37,6,38,6],[37,7,38,7],[37,8,38,8],[37,9,38,9],[37,10,38,10],[21,2,21,6],[22,2,22,6],[31,0,31,2],[31,3,31,6],[23,2,23,6],[29,0,29,10],[31,8,31,9],[24,2,24,6],[25,2,25,6],[27,2,27,3],[10,6,10,7],[20,2,20,6],[12,11,13,11],[12,12,13,12],[16,2,16,3],[16,4,16,6],[10,4,10,5],[11,0,11,10],[12,0,12,10],[17,2,17,6],[27,4,27,6]]}
[]
[]
[]
[null,"СОГЛАСОВАНО ",null,null,null,null,null,null,null," УТВЕРЖДАЮ"]
[null,"_________________________________"]
[null,"(подпись, ф.и.о. руководителя "]
[null,"муниципального учреждения)"]
[null,"\"______\"___________________20____г."]
[]
[]
[null,null,null,null," МУНИЦИПАЛЬНОЕ ЗАДАНИЕ №",null,"2/2"]
["на 2016 год и плановый период 2017 и 2018 годов"]
["по состоянию на 21.12.2016 года"]
[]
[]
[null,null,null,null,null,null,null,null,null,"Коды"]
[null,null,"Наименование муниципального учреждения",null,null,null,null,null,"Форма по ОКУД"]
[null,null,"Виды деятельности муниципального учреждения",null,null,null,null,null,"Дата по сводному реестру"]
[null,null,"Реализация основных общеобразовательных программ начального общего образования",null,null,null,null,null,"по ОКВЭД","80.10.2"]
[null,null,"Реализация основных общеобразовательных программ основного общего образования",null,null,null,null,null,"по ОКВЭД","80.21.1"]
[null,null,"Реализация основных общеобразовательных программ среднего общего образования",null,null,null,null,null,"по ОКВЭД","80.21.2"]
[null,null,"Реализация основных общеобразовательных программ дошкольного образования",null,null,null,null,null,"по ОКВЭД","80.10.1"]
[null,null,"Присмотр и уход",null,null,null,null,null,"по ОКВЭД","85.32"]
[null,null,"Реализация дополнительных общеразвивающих программ",null,null,null,null,null,"по ОКВЭД","80.10.3"]
[null,null,"Организация отдыха детей и молодежи",null,null,null,null,null,"по ОКВЭД"," 92,7; 92,72; 55,21; 55.23.1"]
[null,null,"Организация и проведение олимпиад, конкурсов, мероприятий, направленных на выявление и развитие у обучающихся интеллектуальных и творческих способностей, способностей к занятиям физической культурой и спортом, интереса к научной (научно-исследовательской) деятельности, творческой деятельности, физкультурно-спортивной деятельности",null,null,null,null,null,"по ОКВЭД",80]
[]
[null,null,"Вид муниципального учреждения ",null,"Общеобразовательная организация"]
[]
["Часть 1. Сведения об оказываемых муниципальных услугах."]
[null,null,null,null,"Раздел  1  "]
["1. Наименование муниципальной услуги:",null,null," Реализация основных общеобразовательных программ начального общего образования",null,null,null,null,"Уникальный номер по базовому перечню"]
["2. Категории потребителей муниципальной услуги:",null,null,"Физические лица",null,null,null,null,"11.787.0"]
["3. Показатели, характеризующие объём и (или) качество муниципальных услуг"]
["3.1. Показатели, характеризующие качество муниципальных услуг"]
["Уникальный номер реестровой записи","Показатель, характеризующий содержание муниципальной услуги",null,null,"Показатель, характеризующий условия (формы) оказания муниципальной услуги","Показатель качества муниципальной услуги",null,null,"Значение показателя качества муниципальной услуги"]
[null,null,null,null,null,"наименование показателя","единица измерения по ОКЕИ"]
[null,null,null,null,null,null,"наименование","код","2016 год","2017 год","2018 год"]
[null,"Виды образовательных программ","Категория потребителей","\nМесто обучения ","Форма обучения"]
[1,2,3,4,5,6,10,11,12,13,14]
["697010000131005760411787000301000101000101117 ","не указано","не указано","не указано","Очная","Доля обучающихся, получивших начальное общее образование и перешедших на следующую ступень образования (от общей численности выпускников первой ступени) (%)\n","Процент",744,95,95,95]
[null,null,"не указано","не указано","Очная"," Доля педагогических кадров, прошедших аттестацию (от общей численности работников, подлежащих аттестации) (%)\n","Процент",744,100,100,100]
[null,null,"не указано","не указано","Очная",null,"Процент",744,30,30,30]
[null,null,"не указано","не указано","Очная","Обеспечение учебниками и учебными пособиями обучающихся (от общего количества обучающихся) (%)","Процент",744,100,100,100]
[]
["Допустимые отклонения от установленных показателей качества муниципальной услуги, в пределах которых муниципальное задание считается выполненным:",null,null,null,"±0%"]
[]
["3.2. Показатели, характеризующие объём муниципальных услуг"]
["Уникальный номер реестровой записи","Показатель, характеризующий содержание муниципальной услуги",null,null,"Показатель, характеризующий условия (формы) оказания муниципальной услуги","Показатель объёма муниципальной услуги",null,null,"Значение показателя объёма муниципальной услуги",null,null,"Среднегодовой размер платы (цена, тариф)"]
[null,null,null,null,null,"наименование показателя","единица измерения по ОКЕИ"]
[null,null,null,null,null,null,"наименование","код","2016 год","2017 год","2018 год","2016 год","2017 год","2018 год"]
[null,"Виды образовательных программ","\nКатегория потребителей","\nМесто обучения "]
[1,2,3,4,5,6,7,8,9,10,11,12,13,14]
["697010000131005760411791000301000101004101114 ","не указано","не указано","не указано","Очная","Число обучающихся (человек)","человек",792,{"$f":"#REF!","v":{"$error":"#REF!"}},{"$f":"I54","v":{"$error":"#REF!"}},{"$f":"J54","v":{"$error":"#REF!"}},0,0,0]
[]
["Допустимые отклонения от установленных показателей объёма муниципальной услуги, в пределах которых муниципальное задание считается выполненным:",null,null,null,"±5%"]
[]
["4.Нормативные правовые акты,устанавливающие размер платы (цену,тариф) либо порядок её установления"]
[]
["Нормативный правовой акт"]
["вид","принявший орган","дата","номер","наименование"]
[]
[]
["5. Порядок оказания муниципальной услуги "]
["5.1.Нормативные правовые акты , регулирующие порядок оказания муниципальной услуги "]
["Федеральный закон от 24.06.1999 № 120-ФЗ \"Об основах системы профилактики безнадзорности и правонарушений несовершеннолетних\";\nФедеральный закон от 06.10.2003 № 131-ФЗ \"Об общих принципах организации местного самоуправления в Российской Федерации\"; \nФедеральный закон от 06.10.1999 № 184-ФЗ \"Об общих принципах организации законодательных (представительных) и исполнительных органов государственной власти субъектов Российской Федерации\"; Федеральный закон от 29.12.2012 № 273-ФЗ \"Об образовании в Российской Федерации\""]
[]
["5.2. Порядок информирования потенциальных потребителей муниципальной услуги"]
[]
["Способ информирования ",null,"Состав размещаемой информации ",null,"Частота обновления информации"]
[1,null,2,null,3]
["Размещение на официальном портале муниципального образования «Город Томск»",null,"Информация о муниципальных услугах, оказываемых в учреждении; итоговая аттестация выпускников; организация образовательного процесса в учреждении; организация предшкольного образования в учреждении",null,"Ежемесячно"]
["Размещение на официальном сайте учреждения",null,"Основные положения по организации образовательного процесса в образовательном учреждении",null,"Ежемесячно"]
[" Размещение на информационных стендах в учреждении",null,"Нормативно-правовое обеспечение образовательного процесса",null,"Ежегодно"]
["Консультации специалистами комитета по общему образованию департамента образования администрации Города Томска",null,"Информация об организации образовательного процесса в образовательном учреждении",null,"Постоянно"]
[]
[null,null,null,null,"Раздел  2  "]
["1. Наименование муниципальной услуги:",null,null,"Реализация основных общеобразовательных программ основного общего образования",null,null,null,null,"Уникальный номер по базовому перечню"]
["2. Категории потребителей муниципальной услуги:",null,null,"Физические лица",null,null,null,null,"11.791.0"]
["3. Показатели, характеризующие объём и (или) качество муниципальных услуг"]
["3.1. Показатели, характеризующие качество муниципальных услуг"]
["Уникальный номер реестровой записи","Показатель, характеризующий содержание муниципальной услуги",null,null,"Показатель, характеризующий условия (формы) оказания муниципальной услуги","Показатель качества муниципальной услуги",null,null,"Значение показателя качества муниципальной услуги"]
[null,null,null,null,null,"наименование показателя","единица измерения по ОКЕИ",null,"2016 год","2017 год","2018 год"]
[null,null,null,null,null,null,"наименование","код"]
[null,"Виды образовательных программ","\nКатегория потребителей","\nМесто обучения "]
[1,2,3,4,5,6,7,8,9,10,11]
["697010000131005760411791000301000101004101114 ","не указано","не указано","не указано","Очная","Доля обучающихся, получивших начальное общее образование и перешедших на следующую ступень образования (от общей численности выпускников первой ступени) (%)\n","Процент",744,95,95,95]
[null,"не указано","не указано","не указано",null," Доля обучающихся, получивших аттестат о среднем общем образовании (от общей численности выпускников 11-х классов) (%)\n","Процент",744,98,98,98]
[null,"не указано","не указано","не указано",null," Доля обучающихся, не получивших аттестат об основном общем образовании (от общей численности выпускников 9-х классов) (%)","Процент",744,5,5,5]
[null,"не указано","не указано","не указано",null,"Доля педагогических кадров, прошедших аттестацию (от общей численности работников, подлежащих аттестации) (%)","Процент",744,100,100,100]
[null,"не указано","не указано","не указано",null," Обеспечение учебниками и учебными пособиями обучающихся (от общего количества обучающихся) (%)","Процент",744,100,100,100]
["697010000131005760411791000301000105000101115 ","не указано","не указано","не указано","очно-заочная","Доля обучающихся, получивших начальное общее образование и перешедших на следующую ступень образования (от общей численности выпускников первой ступени) (%)\n","Процент",744,95,95,95]
[null,"не указано","не указано","не указано",null," Доля обучающихся, получивших аттестат о среднем общем образовании (от общей численности выпускников 11-х классов) (%)\n","Процент",744,98,98,98]
[null,"не указано","не указано","не указано",null," Доля обучающихся, не получивших аттестат об основном общем образовании (от общей численности выпускников 9-х классов) (%)","Процент",744,5,5,5]
[null,"не указано","не указано","не указано",null,"Доля педагогических кадров, прошедших аттестацию (от общей численности работников, подлежащих аттестации) (%)","Процент",744,100,100,100]
[null,"не указано","не указано","не указано",null," Обеспечение учебниками и учебными пособиями обучающихся (от общего количества обучающихся) (%)","Процент",744,100,100,100]
[]
["Допустимые отклонения от установленных показателей качества муниципальной услуги, в пределах которых муниципальное задание считается выполненным:",null,null,null,"±0%"]
[]
["3.2. Показатели, характеризующие объём муниципальных услуг"]
["Уникальный номер реестровой записи","Показатель, характеризующий содержание муниципальной услуги",null,null,"Показатель, характеризующий условия (формы) оказания муниципальной услуги","Показатель объёма муниципальной услуги",null,null,"Значение показателя объёма муниципальной услуги",null,null,"Среднегодовой размер платы (цена, тариф)"]
[null,null,null,null,null,"наименование показателя","единица измерения по ОКЕИ"]
[null,null,null,null,null,null,"наименование","код","2016 год","2017 год","2018 год","2016 год","2017 год","2018 год"]
[null,"Виды образовательных программ","\nКатегория потребителей","\nМесто обучения "]
[1,2,3,4,5,7,8,9,10,11,12,12,13,14]
["697010000131005760411791000301000101004101114 ","не указано","не указано","не указано","Очная","Число обучающихся (человек)","человек",792,{"$f":"#REF!","v":{"$error":"#REF!"}},{"$f":"I106","v":{"$error":"#REF!"}},{"$f":"J106","v":{"$error":"#REF!"}},0,0,0]
["697010000131005760411791000301000105000101115 ","не указано","не указано","не указано","Очно-заочная","Число обучающихся (человек)","человек",792,{"$f":"#REF!","v":{"$error":"#REF!"}},{"$f":"I107","v":{"$error":"#REF!"}},{"$f":"J107","v":{"$error":"#REF!"}},0,0,0]
[]
["Допустимые отклонения от установленных показателей объёма муниципальной услуги, в пределах которых муниципальное задание считается выполненным:",null,null,null,"±5%"]
[]
["4.Нормативные правовые акты,устанавливающие размер платы (цену,тариф) либо порядок её установления"]
[]
["Нормативный правовой акт"]
["вид","принявший орган","дата","номер","наименование"]
[]
["5. Порядок оказания муниципальной услуги "]
["5.1.Нормативные правовые акты , регулирующие порядок оказания муниципальной услуги "]
["Федеральный закон от 24.06.1999 № 120-ФЗ \"Об основах системы профилактики безнадзорности и правонарушений несовершеннолетних\"; \nФедеральный закон от 06.10.2003 № 131-ФЗ \"Об общих принципах организации местного самоуправления в Российской Федерации\"; \nФедеральный закон от 06.10.1999 № 184-ФЗ \"Об общих принципах организации законодательных (представительных) и исполнительных органов государственной власти субъектов Российской Федерации\"; Федеральный закон от 29.12.2012 № 273-ФЗ \"Об образовании в Российской Федерации\""]
[]
["5.2. Порядок информирования потенциальных потребителей муниципальной услуги"]
[]
["Способ информирования ",null,"Состав размещаемой информации ",null,"Частота обновления информации"]
[1,null,2,null,3]
["Размещение на официальном портале муниципального образования «Город Томск»",null,"Информация о муниципальных услугах, оказываемых в учреждении; итоговая аттестация выпускников; организация образовательного процесса в учреждении; организация предшкольного образования в учреждении",null,"Ежемесячно"]
["Размещение на официальном сайте учреждения",null,"Основные положения по организации образовательного процесса в образовательном учреждении",null,"Ежемесячно"]
[" Размещение на информационных стендах в учреждении",null,"Нормативно-правовое обеспечение образовательного процесса",null,"Ежегодно"]
["Консультации специалистами комитета по общему образованию департамента образования администрации Города Томска",null,"Информация об организации образовательного процесса в образовательном учреждении",null,"Постоянно"]
[]
[null,null,null,null,"Раздел  3  "]
["1. Наименование муниципальной услуги:",null,null,"Реализация основных общеобразовательных программ среднего общего образования",null,null,null,null,"Уникальный номер по базовому перечню"]
["2. Категории потребителей муниципальной услуги:",null,null,"Физические лица",null,null,null,null,"11.794.0"]
["3. Показатели, характеризующие объём и (или) качество муниципальных услуг"]
["3.1. Показатели, характеризующие качество муниципальных услуг"]
[]
["Уникальный номер реестровой записи","Показатель, характеризующий содержание муниципальной услуги",null,null,"Показатель, характеризующий условия (формы) оказания муниципальной услуги","Показатель качества муниципальной услуги",null,null,"Значение показателя качества муниципальной услуги"]
[null,null,null,null,null,"наименование показателя","единица измерения по ОКЕИ",null,"2016 год","2017 год","2018 год"]
[null,null,null,null,null,null,"наименование","код"]
[null,"Виды образовательных программ","\nКатегория потребителей","\nМесто обучения "]
[1,2,3,4,5,6,7,8,9,10,11]
["697010000131005760411794000301000101001101102","не указано","не указано","не указано","Очная","Доля обучающихся, получивших начальное общее образование и перешедших на следующую ступень образования (от общей численности выпускников первой ступени) (%)\n","Процент",744,95,95,95]
[null,"не указано","не указано","не указано",null," Доля обучающихся, получивших аттестат о среднем общем образовании (от общей численности выпускников 11-х классов) (%)\n","Процент",744,98,98,98]
[null,"не указано","не указано","не указано",null," Доля обучающихся, не получивших аттестат об основном общем образовании (от общей численности выпускников 9-х классов) (%)","Процент",744,5,5,5]
[null,"не указано","не указано","не указано",null,"Доля педагогических кадров, прошедших аттестацию (от общей численности работников, подлежащих аттестации) (%)","Процент",744,100,100,100]
[null,"не указано","не указано","не указано",null," Обеспечение учебниками и учебными пособиями обучающихся (от общего количества обучающихся) (%)","Процент",744,100,100,100]
["11794000301000105007101","не указано","не указано","не указано","очно-заочная","Доля обучающихся, получивших начальное общее образование и перешедших на следующую ступень образования (от общей численности выпускников первой ступени) (%)\n","Процент",744,95,95,95]
[null,"не указано","не указано","не указано",null," Доля обучающихся, получивших аттестат о среднем общем образовании (от общей численности выпускников 11-х классов) (%)\n","Процент",744,98,98,98]
[null,"не указано","не указано","не указано",null," Доля обучающихся, не получивших аттестат об основном общем образовании (от общей численности выпускников 9-х классов) (%)","Процент",744,5,5,5]
[null,"не указано","не указано","не указано",null,"Доля педагогических кадров, прошедших аттестацию (от общей численности работников, подлежащих аттестации) (%)","Процент",744,100,100,100]
[null,"не указано","не указано","не указано",null," Обеспечение учебниками и учебными пособиями обучающихся (от общего количества обучающихся) (%)","Процент",744,100,100,100]
[]
["Допустимые отклонения от установленных показателей качества муниципальной услуги, в пределах которых муниципальное задание считается выполненным:",null,null,null,"±0%"]
[]
["3.2. Показатели, характеризующие объём муниципальных услуг"]
[]
["Уникальный номер реестровой записи","Показатель, характеризующий содержание муниципальной услуги",null,null,"Показатель, характеризующий условия (формы) оказания муниципальной услуги","Показатель объёма муниципальной услуги",null,null,"Значение показателя объёма муниципальной услуги",null,null,"Среднегодовой размер платы (цена, тариф)"]
[null,null,null,null,null,"наименование показателя","единица измерения по ОКЕИ"]
[null,null,null,null,null,null,"наименование","код","2016 год","2017 год","2018 год","2016 год","2017 год","2018 год"]
[null,"Виды образовательных программ","\nКатегория потребителей","\nМесто обучения "]
[1,2,3,4,5,7,8,9,10,11,12,13,14,15]
["697010000131005760411794000301000101001101102","не указано","не указано","не указано","Очная","Число обучающихся (человек)","человек",792,{"$f":"#REF!","v":{"$error":"#REF!"}},{"$f":"I160","v":{"$error":"#REF!"}},{"$f":"J160","v":{"$error":"#REF!"}},0,0,0]
[{"$f":"A145","v":"11794000301000105007101"},"не указано","не указано","не указано","Очно-заочная","Число обучающихся (человек)","человек",792,{"$f":"#REF!","v":{"$error":"#REF!"}},{"$f":"I161","v":{"$error":"#REF!"}},{"$f":"J161","v":{"$error":"#REF!"}},0,0,0]
[]
["Допустимые отклонения от установленных показателей объёма муниципальной услуги, в пределах которых муниципальное задание считается выполненным:",null,null,null,"±5%"]
[]
["4.Нормативные правовые акты,устанавливающие размер платы (цену,тариф) либо порядок её установления"]
[]
["Нормативный правовой акт"]
["вид","принявший орган","дата","номер","наименование"]
[]
["5. Порядок оказания муниципальной услуги "]
["5.1.Нормативные правовые акты , регулирующие порядок оказания муниципальной услуги "]
["Федеральный закон от 24.06.1999 № 120-ФЗ \"Об основах системы профилактики безнадзорности и правонарушений несовершеннолетних\";\n Федеральный закон от 06.10.2003 № 131-ФЗ \"Об общих принципах организации местного самоуправления в Российской Федерации\"; \nФедеральный закон от 06.10.1999 № 184-ФЗ \"Об общих принципах организации законодательных (представительных) и исполнительных органов государственной власти субъектов Российской Федерации\"; Федеральный закон от 29.12.2012 № 273-ФЗ \"Об образовании в Российской Федерации\""]
[]
["5.2. Порядок информирования потенциальных потребителей муниципальной услуги"]
[]
["Способ информирования ",null,"Состав размещаемой информации ",null,"Частота обновления информации"]
[1,null,2,null,3]
["Размещение на официальном портале муниципального образования «Город Томск»",null,"Информация о муниципальных услугах, оказываемых в учреждении; итоговая аттестация выпускников; организация образовательного процесса в учреждении; организация предшкольного образования в учреждении",null,"Ежемесячно"]
["Размещение на официальном сайте учреждения",null,"Основные положения по организации образовательного процесса в образовательном учреждении",null,"Ежемесячно"]
[" Размещение на информационных стендах в учреждении",null,"Нормативно-правовое обеспечение образовательного процесса",null,"Ежегодно"]
["Консультации специалистами комитета по общему образованию департамента образования администрации Города Томска",null,"Информация об организации образовательного процесса в образовательном учреждении",null,"Постоянно"]
[]
[null,null,null,null,"Раздел  4  "]
["1. Наименование муниципальной услуги:",null,null,"Реализация основных общеобразовательных программ дошкольного образования",null,null,null,null,"Уникальный номер по базовому перечню"]
["2. Категории потребителей муниципальной услуги:",null,null,"дети-инвалиды; возраст обучающихся: от 1 года до 3 лет,дети-инвалиды; дети-инвалиды; возраст обучающихся: от 3 года до 8 лет;обучающиеся за исключением детей-инвалидов и инвалидов; возраст обучающихся: от 1 лет до 3 лет; обучающиеся за исключением детей-инвалидов и инвалидов; возраст обучающихся: от 3 лет до 8 лет",null,null,null,null,"11.784.0"]
["3. Показатели, характеризующие объём и (или) качество муниципальных услуг"]
["3.1. Показатели, характеризующие качество муниципальных услуг"]
["Уникальный номер реестровой записи","Показатель, характеризующий содержание муниципальной услуги",null,null,"Показатель, характеризующий условия (формы) оказания муниципальной услуги","Показатель качества муниципальной услуги",null,null,"Значение показателя качества муниципальной услуги"]
[null,null,null,null,null,"наименование показателя","единица измерения по ОКЕИ"]
[null,null,null,null,null,null,"наименование","код","2016 год","2017 год","2018 год"]
[null,"Виды образовательных программ","Категория потребителей","Возраст обучающихся"]
[1,2,3,4,5,6,7,8,9,10,11]
["697010000131005760411784000300500201002100115","не указано","дети-инвалиды","\nот 1 года до 3 лет","Очная"," Результаты освоения воспитанниками реализуемой образовательной программы по ФГОС (качество дошкольного образования) ( %)\n","Процент",744,"нормативный вариант развития - 30 и более %, незначительные трудности в освоении программы - 60 и более %, выраженное несоответсвие развития - не более 10 %","нормативный вариант развития - 30 и более %, незначительные трудности в освоении программы - 60 и более %, выраженное несоответсвие развития - не более 10 %","нормативный вариант развития - 30 и более %, незначительные трудности в освоении программы - 60 и более %, выраженное несоответсвие развития - не более 10 %"]
[null,null,null,null,null,"Доля педагогических кадров, прошедших аттестацию (от общей численности  работников, подлежащих аттестации) (%)","Процент",744,100,100,100]
[null,null,null,null,null," Охват детей дополнительными образовательными услугами (от общей численности воспитанников) (%)","Процент",744,30,30,30]
["697010000131005760411784000300500301001100113",null,null," от 3 лет до 8 лет",null," Результаты освоения воспитанниками реализуемой образовательной программы по ФГОС (качество дошкольного образования) ( %)\n","Процент",744,"нормативный вариант развития - 30 и более %, незначительные трудности в освоении программы - 60 и более %, выраженное несоответсвие развития - не более 10 %","нормативный вариант развития - 30 и более %, незначительные трудности в освоении программы - 60 и более %, выраженное несоответсвие развития - не более 10 %","нормативный вариант развития - 30 и более %, незначительные трудности в освоении программы - 60 и более %, выраженное несоответсвие развития - не более 10 %"]
[null,null,null,null,null,"Доля педагогических кадров, прошедших аттестацию (от общей численности  работников, подлежащих аттестации) (%)","Процент",744,100,100,100]
[null,null,null,null,null," Охват детей дополнительными образовательными услугами (от общей численности воспитанников) (%)","Процент",744,30,30,30]
["697010000131005760411784000303900201001100112","не указано","обучающиеся за исключением детей-инвалидов и инвалидов","\nот 1 года до 3 лет",null," Результаты освоения воспитанниками реализуемой образовательной программы по ФГОС (качество дошкольного образования) ( %)\n","Процент",744,"нормативный вариант развития - 30 и более %, незначительные трудности в освоении программы - 60 и более %, выраженное несоответсвие развития - не более 10 %","нормативный вариант развития - 30 и более %, незначительные трудности в освоении программы - 60 и более %, выраженное несоответсвие развития - не более 10 %","нормативный вариант развития - 30 и более %, незначительные трудности в освоении программы - 60 и более %, выраженное несоответсвие развития - не более 10 %"]
[null,null,null,null,null,"Доля педагогических кадров, прошедших аттестацию (от общей численности  работников, подлежащих аттестации) (%)","Процент",744,100,100,100]
[null,null,null,null,null," Охват детей дополнительными образовательными услугами (от общей численности воспитанников) (%)","Процент",744,30,30,30]
["697010000131005760411784000303900301000100112",null,null," от 3 лет до 8 лет",null," Результаты освоения воспитанниками реализуемой образовательной программы по ФГОС (качество дошкольного образования) ( %)\n","Процент",744,"нормативный вариант развития - 30 и более %, незначительные трудности в освоении программы - 60 и более %, выраженное несоответсвие развития - не более 10 %","нормативный вариант развития - 30 и более %, незначительные трудности в освоении программы - 60 и более %, выраженное несоответсвие развития - не более 10 %","нормативный вариант развития - 30 и более %, незначительные трудности в освоении программы - 60 и более %, выраженное несоответсвие развития - не более 10 %"]
[null,null,null,null,null,"Доля педагогических кадров, прошедших аттестацию (от общей численности  работников, подлежащих аттестации) (%)","Процент",744,100,100,100]
[null,null,null,null,null," Охват детей дополнительными образовательными услугами (от общей численности воспитанников) (%)","Процент",744,30,30,30]
[]
["Допустимые отклонения от установленных показателей качества муниципальной услуги, в пределах которых муниципальное задание считается выполненным:",null,null,null,"±0%"]
[]
["3.2. Показатели, характеризующие объём муниципальных услуг"]
["Уникальный номер реестровой записи","Показатель, характеризующий содержание муниципальной услуги",null,null,"Показатель, характеризующий условия (формы) оказания муниципальной услуги","Показатель объёма муниципальной услуги",null,null,"Значение показателя объёма муниципальной услуги",null,null,"Среднегодовой размер платы (цена, тариф)"]
[null,null,null,null,null,"наименование показателя","единица измерения по ОКЕИ"]
[null,null,null,null,null,null,"наименование","код","2016 год","2017 год","2018 год","2016 год","2017 год","2018 год"]
[null,"Виды образовательных программ","Категория потребителей","Возраст обучающихся"]
[1,2,3,4,5,6,7,8,9,10,11,12,13,14]
[{"$f":"A193","v":"697010000131005760411784000300500201002100115"},"не указано","дети-инвалиды ","Возраст обучающихся: от 1 года до 3 лет","Очная","Число обучающихся (человек)","человек",792,{"$f":"#REF!","v":{"$error":"#REF!"}},{"$f":"I214","v":{"$error":"#REF!"}},{"$error":"#REF!"},0,0,0]
[{"$f":"A196","v":"697010000131005760411784000300500301001100113"},null,null,"Возраст обучающихся: от 3 лет до 8 лет",null,"Число обучающихся (человек)","человек",792,{"$f":"#REF!","v":{"$error":"#REF!"}},{"$error":"#REF!"},{"$error":"#REF!"},0,0,0]
[{"$f":"A199","v":"697010000131005760411784000303900201001100112"},null,"обучающиеся за исключением детей-инвалидов и инвалидов\n","Возраст обучающихся: от 1 года до 3 лет",null,"Число обучающихся (человек)","человек",792,{"$f":"#REF!","v":{"$error":"#REF!"}},{"$error":"#REF!"},{"$error":"#REF!"},0,0,0]
[6.9701000013100503E+44,null,null,"Возраст обучающихся: от 3 лет до 8 лет",null,"Число обучающихся (человек)","человек",792,{"$f":"#REF!","v":{"$error":"#REF!"}},{"$error":"#REF!"},{"$error":"#REF!"},0,0,0]
[]
["Допустимые отклонения от установленных показателей объёма муниципальной услуги, в пределах которых муниципальное задание считается выполненным:",null,null,null,"±5%"]
[]
["4.Нормативные правовые акты,устанавливающие размер платы (цену,тариф) либо порядок её установления"]
[]
["Нормативный правовой акт"]
["вид","принявший орган","дата","номер","наименование"]
[]
["5. Порядок оказания муниципальной услуги "]
["5.1.Нормативные правовые акты , регулирующие порядок оказания муниципальной услуги "]
["Приказ Минобрнауки России от 30.08.2013 № 1014 \"Об утверждении Порядка организации и осуществления образовательной деятельности по основным общеобразовательным программам - образовательным программам дошкольного образования\"; \nПриказ Минобрнауки России от 17.10.2013 № 1155 \"Об утвержднии федерального государственного образовательного стандарта дошкольного образования\"; \nФедеральный закон от 06.10.2003 № 131-ФЗ \"Об общих принципах организации местного самоуправления в Российской Федерации\"; Федеральный закон от 06.10.1999 № 184-ФЗ \"Об общих принципах организации законодательных (представительных) и исполнительных органов государственной власти субъектов Российской Федерации\"; \nФедеральный закон от 29.12.2012 № 273-ФЗ \"Об образовании в Российской Федерации\""]
[]
["5.2. Порядок информирования потенциальных потребителей муниципальной услуги"]
[]
["Способ информирования ",null,"Состав размещаемой информации ",null,"Частота обновления информации"]
[1,null,2,null,3]
["Размещение на официальном портале муниципального образования «Город Томск»",null,"Информация о муниципальных услугах, оказываемых в учреждении; итоговая аттестация выпускников; организация образовательного процесса в учреждении; организация предшкольного образования в учреждении",null,"Ежемесячно"]
["Размещение на официальном сайте учреждения",null,"Основные положения по организации образовательного процесса в образовательном учреждении",null,"Ежемесячно"]
[" Размещение на информационных стендах в учреждении",null,"Нормативно-правовое обеспечение образовательного процесса",null,"Ежегодно"]
["Консультации специалистами комитета по общему образованию департамента образования администрации Города Томска",null,"Информация об организации образовательного процесса в образовательном учреждении",null,"Постоянно"]
[]
[null,null,null,null,"Раздел  5  "]
["1. Наименование муниципальной услуги:",null,null,"Присмотр и уход",null,null,null,null,"Уникальный номер по базовому перечню"]
["2. Категории потребителей муниципальной услуги:",null,null,"дети-инвалиды; возраст обучающихся: от 1 года до 3 лет,дети-инвалиды; дети-инвалиды; возраст обучающихся: от 3 года до 8 лет;обучающиеся за исключением детей-инвалидов и инвалидов; возраст обучающихся: от 1 лет до 3 лет; обучающиеся за исключением детей-инвалидов и инвалидов; возраст обучающихся: от 3 лет до 8 лет",null,null,null,null,"11.785.0"]
["3. Показатели, характеризующие объём и (или) качество муниципальных услуг"]
["3.1. Показатели, характеризующие качество муниципальных услуг"]
["Уникальный номер реестровой записи","Показатель, характеризующий содержание муниципальной услуги",null,"Показатель, характеризующий условия (формы) оказания муниципальной услуги","Показатель качества муниципальной услуги",null,null,"Значение показателя качества муниципальной услуги"]
[null,null,null,null,"наименование показателя","единица измерения по ОКЕИ",null,"2016 год","2017 год","2018 год"]
[null,null,null,null,null,"наименование","код"]
[null,"Категория потребителей","Возраст обучающихся"]
[1,2,3,4,5,6,7,8,9,10]
["697010000131005760411785000500200009000100112 "," дети-инвалиды ","\nот 1 года до 3 лет","Не указано"," Отсутствие нарушений, связанных с предоставлением питания детей (шт.)\n","штука",796,0,0,0]
[null,null,null,null,"Отсутствие случаев детского травматизма(шт.)\n","штука",796,0,0,0]
[null,null,null,null,"Отсутствие обоснованных жалоб на качество предоставления услуги (шт.)\n\n","штука",796,0,0,0]
["697010000131005760411785000500300009008100112 ",null," от 3 лет до 8 лет",null," Отсутствие нарушений, связанных с предоставлением питания детей (шт.)\n","штука",796,0,0,0]
[null,null,null,null,"Отсутствие случаев детского травматизма (шт.)\n","штука",796,0,0,0]
[null,null,null,null,"Отсутствие обоснованных жалоб на качество предоставления услуги (шт.)\n\n","штука",796,0,0,0]
["697010000131005760411785004300200009004100113 ","обучающиеся за исключением детей-инвалидов и инвалидов\n","от 1 года до 3 лет","Не указано"," Отсутствие нарушений, связанных с предоставлением питания детей (шт.)\n","штука",796,0,0,0]
[null,null,null,null,"Отсутствие случаев детского травматизма (шт.)\n","штука",796,0,0,0]
[null,null,null,null,"Отсутствие обоснованных жалоб на качество предоставления услуги (шт.)\n\n","штука",796,0,0,0]
["697010000131005760411785004300300009002100118 ",null," от 3 лет до 8 лет",null," Отсутствие нарушений, связанных с предоставлением питания детей (шт.)\n","штука",796,0,0,0]
[null,null,null,null,"Отсутствие случаев детского травматизма (шт.)\n","штука",796,0,0,0]
[null,null,null,null,"Отсутствие обоснованных жалоб на качество предоставления услуги (шт.)\n\n","штука",796,0,0,0]
[]
["Допустимые отклонения от установленных показателей качества муниципальной услуги, в пределах которых муниципальное задание считается выполненным:",null,null,null,"±0%"]
[]
["3.2. Показатели, характеризующие объём муниципальных услуг"]
["Уникальный номер реестровой записи","Показатель, характеризующий содержание муниципальной услуги",null,"Показатель, характеризующий условия (формы) оказания муниципальной услуги","Показатель объёма муниципальной услуги",null,null,"Значение показателя объёма муниципальной услуги",null,null,"Среднегодовой размер платы (цена, тариф)"]
[null,null,null,null,"наименование показателя","единица измерения по ОКЕИ"]
[null,null,null,null,null,"наименование","код","2016 год","2017 год","2018 год","2016 год","2017 год","2018 год"]
[null,"Категория потребителей","Возраст обучающихся"]
[1,2,3,4,5,6,7,8,9,10,11,12,13]
[{"$f":"A249","v":"697010000131005760411785000500200009000100112 "}," дети-инвалиды; ","\n от 1 года до 3 лет","Не указано","Число детей (человек)","человек",792,{"$f":"#REF!","v":{"$error":"#REF!"}},{"$f":"H270","v":{"$error":"#REF!"}},{"$f":"I270","v":{"$error":"#REF!"}},0,0,0]
[{"$f":"A252","v":"697010000131005760411785000500300009008100112 "},null,"от 3 лет до 8 лет",null,"Число детей (человек)","человек",792,{"$f":"#REF!","v":{"$error":"#REF!"}},{"$error":"#REF!"},{"$error":"#REF!"},0,0,0]
[{"$f":"A255","v":"697010000131005760411785004300200009004100113 "},"обучающиеся за исключением детей-инвалидов и инвалидов;\n",": от 1 года до 3 лет",null,"Число детей (человек)","человек",792,{"$f":"#REF!","v":{"$error":"#REF!"}},{"$error":"#REF!"},{"$error":"#REF!"},"90 руб. в день","90 руб. в день","90 руб. в день"]
[{"$f":"A258","v":"697010000131005760411785004300300009002100118 "},null," от 3 лет до 8 лет",null,"Число детей (человек)","человек",792,{"$f":"#REF!","v":{"$error":"#REF!"}},{"$error":"#REF!"},{"$error":"#REF!"},"90 руб. в день","90 руб. в день","90 руб. в день"]
[]
["Допустимые отклонения от установленных показателей объёма муниципальной услуги, в пределах которых муниципальное задание считается выполненным:",null,null,null,"±5%"]
[]
["4.Нормативные правовые акты,устанавливающие размер платы (цену,тариф) либо порядок её установления"]
[]
["Нормативный правовой акт"]
["вид","принявший орган","дата","номер","наименование"]
["постановление"," администрация Города Томска","2014-12-30",1428,"О размере платы, взимаемой с родителей (законных представителей) за присмотр и уход за детьми, осваивающими образовательные программы дошкольного образования в муниципальных учреждениях муниципального образования «Город Томск», осуществляющих образовательную деятельность"]
["5. Порядок оказания муниципальной услуги "]
["5.1.Нормативные правовые акты , регулирующие порядок оказания муниципальной услуги "]
["Федеральный закон от 06.10.2003 № 131-ФЗ \"Об общих принципах организации местного самоуправления в Российской Федерации\"; \nФедеральный закон от 06.10.1999 № 184-ФЗ \"Об общих принципах организации законодательных (представительных) и исполнительных органов государственной власти субъектов Российской Федерации\"; \nФедеральный закон от 29.12.2012 № 273-ФЗ \"Об образовании в Российской Федерации\""]
[]
["5.2. Порядок информирования потенциальных потребителей муниципальной услуги"]
[]
["Способ информирования ",null,"Состав размещаемой информации ",null,"Частота обновления информации"]
[1,null,2,null,3]
["Размещение на официальном портале муниципального образования «Город Томск»",null,"Информация о муниципальных услугах, оказываемых в учреждении; итоговая аттестация выпускников; организация образовательного процесса в учреждении; организация предшкольного образования в учреждении",null,"Ежемесячно"]
["Размещение на официальном сайте учреждения",null,"Основные положения по организации образовательного процесса в образовательном учреждении",null,"Ежемесячно"]
[" Размещение на информационных стендах в учреждении",null,"Нормативно-правовое обеспечение образовательного процесса",null,"Ежегодно"]
["Консультации специалистами комитета по общему образованию департамента образования администрации Города Томска",null,"Информация об организации образовательного процесса в образовательном учреждении",null,"Постоянно"]
[]
[null,null,null,null,"Раздел  6  "]
["1. Наименование муниципальной услуги:",null,null,"Реализация дополнительных общеразвивающих программ",null,null,null,null,"Уникальный номер по базовому перечню"]
["2. Категории потребителей муниципальной услуги:",null,null,"физические лица",null,null,null,null,"11.Г42.0"]
["3. Показатели, характеризующие объём и (или) качество муниципальных услуг"]
["3.1. Показатели, характеризующие качество муниципальных услуг"]
["Уникальный номер реестровой записи","Показатель, характеризующий содержание муниципальной услуги",null,null,"Показатель, характеризующий условия (формы) оказания муниципальной услуги","Показатель качества муниципальной услуги",null,null,"Значение показателя качества муниципальной услуги"]
[null,null,null,null,null,"наименование показателя","единица измерения по ОКЕИ",null,"2016 год","2017 год","2018 год"]
[null,"Категория потребителей","Виды образовательных программ","Направленность образовательной программы",null,null,"наименование","код"]
[1,2,3,4,5,6,7,8,9,10,11]
["697010000131005760411Г42001000300101003100116 ","не указано","не указано"," техническая","Очная","Сохранность контингента обучающихся от первоначального комплектования (суммарно):- при реализации программ в течение 1-2-х лет; - при реализации программ более 2-х лет (%) \n","Процент",744,"80 и более %;                 75 и более %","81 и более %;                 75 и более %","82 и более %;                 75 и более %"]
[null,null,null,null,null,"Доля педагогических кадров, прошедших аттестацию (от общей численности работников, подлежащих аттестации) (%)\n","Процент",744,100,100,100]
[null,null,null,null,null,"Доля обучающихся, принимающих участие в конкурсах, выставках, фестивалях, спортивных мероприятиях различного уровня (%)\n\n\n","Процент",744,"не менее 40% от контингента в течение календарного года","не менее 40% от контингента в течение календарного года","не менее 40% от контингента в течение календарного года"]
["697010000131005760411Г42001000300201002100114 ",null,null," естественнонаучная",null,"Сохранность контингента обучающихся от первоначального комплектования (суммарно):- при реализации программ в течение 1-2-х лет; - при реализации программ более 2-х лет (%) \n","Процент",744,"80 и более %;                 75 и более %","81 и более %;                 75 и более %","82 и более %;                 75 и более %"]
[null,null,null,null,null,"Доля педагогических кадров, прошедших аттестацию (от общей численности работников, подлежащих аттестации) (%)\n","Процент",744,100,100,100]
[null,null,null,null,null,"Доля обучающихся, принимающих участие в конкурсах, выставках, фестивалях, спортивных мероприятиях различного уровня (%)\n\n\n","Процент",744,"не менее 40% от контингента в течение календарного года","не менее 40% от контингента в течение календарного года","не менее 40% от контингента в течение календарного года"]
["697010000131005760411Г42001000300301001100115 ",null,null,"физкультурно-спортивная",null,"Сохранность контингента обучающихся от первоначального комплектования (суммарно):- при реализации программ в течение 1-2-х лет; - при реализации программ более 2-х лет (%) \n","Процент",744,"80 и более %;                 75 и более %","80 и более %;                 75 и более %","80 и более %;                 75 и более %"]
[null,null,null,null,null,"Доля педагогических кадров, прошедших аттестацию (от общей численности работников, подлежащих аттестации) (%)\n","Процент",744,100,100,100]
[null,null,null,null,null,"Доля обучающихся, принимающих участие в конкурсах, выставках, фестивалях, спортивных мероприятиях различного уровня (%)\n\n\n","Процент",744,"не менее 40% от контингента в течение календарного года","не менее 40% от контингента в течение календарного года","не менее 40% от контингента в течение календарного года"]
["697010000131005760411Г42001000300401000100116 ",null,null,"художественная",null,"Сохранность контингента обучающихся от первоначального комплектования (суммарно):- при реализации программ в течение 1-2-х лет; - при реализации программ более 2-х лет (%) \n","Процент",744,"80 и более %;                 75 и более %","80 и более %;                 75 и более %","80 и более %;                 75 и более %"]
[null,null,null,null,null,"Доля педагогических кадров, прошедших аттестацию (от общей численности работников, подлежащих аттестации) (%)\n","Процент",744,100,100,100]
[null,null,null,null,null,"Доля обучающихся, принимающих участие в конкурсах, выставках, фестивалях, спортивных мероприятиях различного уровня (%)\n\n\n","Процент",744,"не менее 40% от контингента в течение календарного года","не менее 40% от контингента в течение календарного года","не менее 40% от контингента в течение календарного года"]
["697010000131005760411Г42001000300501009100115 ",null,null,"туристско-краеведческая",null,"Сохранность контингента обучающихся от первоначального комплектования (суммарно):- при реализации программ в течение 1-2-х лет; - при реализации программ более 2-х лет (%) \n","Процент",744,"80 и более %;                 75 и более %","81 и более %;                 75 и более %","82 и более %;                 75 и более %"]
[null,null,null,null,null,"Доля педагогических кадров, прошедших аттестацию (от общей численности работников, подлежащих аттестации) (%)\n","Процент",744,100,100,100]
[null,null,null,null,null,"Доля обучающихся, принимающих участие в конкурсах, выставках, фестивалях, спортивных мероприятиях различного уровня (%)\n\n\n","Процент",744,"не менее 40% от контингента в течение календарного года","не менее 40% от контингента в течение календарного года","не менее 40% от контингента в течение календарного года"]
["697010000131005760411Г42001000300601008100115 ",null,null,"cоциально-педагогическая",null,"Сохранность контингента обучающихся от первоначального комплектования (суммарно):- при реализации программ в течение 1-2-х лет; - при реализации программ более 2-х лет (%) \n","Процент",744,"80 и более %;                 75 и более %","81 и более %;                 75 и более %","82 и более %;                 75 и более %"]
[null,null,null,null,null,"Доля педагогических кадров, прошедших аттестацию (от общей численности работников, подлежащих аттестации) (%)\n","Процент",744,100,100,100]
[null,null,null,null,null,"Доля обучающихся, принимающих участие в конкурсах, выставках, фестивалях, спортивных мероприятиях различного уровня (%)\n\n\n","Процент",744,"не менее 40% от контингента в течение календарного года","не менее 40% от контингента в течение календарного года","не менее 40% от контингента в течение календарного года"]
[]
["Допустимые отклонения от установленных показателей качества муниципальной услуги, в пределах которых муниципальное задание считается выполненным:",null,null,null,"±0%"]
[]
["3.2. Показатели, характеризующие объём муниципальных услуг"]
["Уникальный номер реестровой записи","Показатель, характеризующий содержание муниципальной услуги",null,null,"Показатель, характеризующий условия (формы) оказания муниципальной услуги","Показатель объёма муниципальной услуги",null,null,"Значение показателя объёма муниципальной услуги",null,null,"Среднегодовой размер платы (цена, тариф)"]
[null,null,null,null,null,"наименование показателя","единица измерения по ОКЕИ"]
[null,null,null,null,null,null,"наименование","код","2016 год","2017 год","2018 год","2016 год","2017 год","2018 год"]
[null,"Категория потребителей","Виды образовательных программ","Направленность образовательной программы"]
[1,2,3,4,5,6,7,8,9,10,11,12,13,14]
[{"$f":"A304","v":"697010000131005760411Г42001000300101003100116 "},"\n","\n","техническая","Очная","Число человеко-часов пребывания (человеко-час)","человеко-час",539,{"$f":"#REF!","v":{"$error":"#REF!"}},{"$f":"I331","v":{"$error":"#REF!"}},{"$f":"J331","v":{"$error":"#REF!"}},0,0,0]
[{"$f":"A307","v":"697010000131005760411Г42001000300201002100114 "},null,null,"естественнонаучная",null,"Число человеко-часов пребывания (человеко-час)","человеко-час",539,{"$f":"#REF!","v":{"$error":"#REF!"}},{"$f":"I332","v":{"$error":"#REF!"}},{"$error":"#REF!"},0,0,0]
[{"$f":"A310","v":"697010000131005760411Г42001000300301001100115 "},null,null,"физкультурно-спортивная",null,"Число человеко-часов пребывания (человеко-час)","человеко-час",539,{"$f":"#REF!","v":{"$error":"#REF!"}},{"$error":"#REF!"},{"$error":"#REF!"},0,0,0]
[{"$f":"A313","v":"697010000131005760411Г42001000300401000100116 "},null,null,"художественная",null,"Число человеко-часов пребывания (человеко-час)","человеко-час",539,{"$f":"#REF!","v":{"$error":"#REF!"}},{"$error":"#REF!"},{"$error":"#REF!"},0,0,0]
[{"$f":"A316","v":"697010000131005760411Г42001000300501009100115 "},null,null,"туристско-краеведческая",null,"Число человеко-часов пребывания (человеко-час)","человеко-час",539,{"$f":"#REF!","v":{"$error":"#REF!"}},{"$error":"#REF!"},{"$error":"#REF!"},0,0,0]
[{"$f":"A319","v":"697010000131005760411Г42001000300601008100115 "},null,null,"cоциально-педагогическая",null,"Число человеко-часов пребывания (человеко-час)","человеко-час",539,{"$f":"#REF!","v":{"$error":"#REF!"}},{"$f":"I336","v":{"$error":"#REF!"}},{"$f":"J336","v":{"$error":"#REF!"}},0,0,0]
[]
["Допустимые отклонения от установленных показателей объёма муниципальной услуги, в пределах которых муниципальное задание считается выполненным:",null,null,null,"±10%"]
[]
["4.Нормативные правовые акты,устанавливающие размер платы (цену,тариф) либо порядок её установления"]
[]
["Нормативный правовой акт"]
["вид","принявший орган","дата","номер","наименование"]
[]
["5. Порядок оказания муниципальной услуги "]
["5.1.Нормативные правовые акты , регулирующие порядок оказания муниципальной услуги "]
["Приказ Минобрнауки России от 29.08.2013 № 1008 \"Об утверждении Порядка организации и осуществления образовательной деятельности по дополнительным общеобразовательным программам\"; \nФедеральный закон от 06.10.2003 № 131-ФЗ \"Об общих принципах организации местного самоуправления в Российской Федерации\"; \nФедеральный закон от 06.10.1999 № 184-ФЗ \"Об общих принципах организации законодательных (представительных) и исполнительных органов государственной власти субъектов Российской Федерации\"; Федеральный закон от 29.12.2012 № 273-ФЗ \"Об образовании в Российской Федерации\""]
[]
["5.2. Порядок информирования потенциальных потребителей муниципальной услуги"]
[]
["Способ информирования ",null,"Состав размещаемой информации ",null,"Частота обновления информации"]
[1,null,2,null,3]
["Размещение на официальном портале муниципального образования «Город Томск»",null,"Информация о муниципальных услугах, оказываемых в учреждении; итоговая аттестация выпускников; организация образовательного процесса в учреждении; организация предшкольного образования в учреждении",null,"Ежемесячно"]
["Размещение на официальном сайте учреждения",null,"Основные положения по организации образовательного процесса в образовательном учреждении",null,"Ежемесячно"]
[" Размещение на информационных стендах в учреждении",null,"Нормативно-правовое обеспечение образовательного процесса",null,"Ежегодно"]
["Консультации специалистами комитета по общему образованию департамента образования администрации Города Томска",null,"Информация об организации образовательного процесса в образовательном учреждении",null,"Постоянно"]
[]
[null,null,null,null,"Раздел  7  "]
["1. Наименование муниципальной услуги:",null,null,"Организация отдыха детей и молодежи",null,null,null,null,"Уникальный номер по базовому перечню"]
["2. Категории потребителей муниципальной услуги:",null,null,"физические лица",null,null,null,null,"10.028.0"]
["3. Показатели, характеризующие объём и (или) качество муниципальных услуг"]
["3.1. Показатели, характеризующие качество муниципальных услуг"]
["Уникальный номер реестровой записи","Показатель, характеризующий содержание муниципальной услуги","Показатель, характеризующий условия (формы) оказания муниципальной услуги","Показатель качества муниципальной услуги",null,null,"Значение показателя качества муниципальной услуги"]
[null,null,null,"наименование показателя","единица измерения по ОКЕИ"]
[null,null,null,null,"наименование","код","2016 год","2017 год","2018 год"]
[1,2,3,4,5,6,7,8,9]
["697010000131005760410028000000000002005101114 ",null,"В каникулярное время с дневным пребыванием"," Сохранность контингента в течение смены в лагерях на базе муниципальных бюджетных и автономных образовательных учреждений (фактическое количество дето-дней / плановое количество дето-дней * 100%) (%)\n","Процент",744,"Уровни эффективности: высокий - от 95% до 100%, достаточный - от 85% до 95%, низкий - менее 85%","Уровни эффективности: высокий - от 95% до 100%, достаточный - от 85% до 95%, низкий - менее 85%","Уровни эффективности: высокий - от 95% до 100%, достаточный - от 85% до 95%, низкий - менее 85%"]
[null,null,null,"Отсутствие обоснованных жалоб на качество предоставления услуги (шт); \n","Штука",796,0,0,0]
[null,null,null,"Укомплектованность педагогическими кадрами (от планового количества ставок) (%)\n\n","Процент",744,100,100,100]
[null,null,null," Доля педагогических кадров с высшим образованием в загородных лагерях (от общей численности педагогических работников, осуществляющих отдых детей в каникулярное время) (%)\n","Процент",744,"90 и более %","90 и более %","90 и более %"]
["697010000131005760410028000000000001006101116 ",null,"в каникулярное время с круглосуточным пребыванием"," Сохранность контингента в течение смены в лагерях на базе муниципальных бюджетных и автономных образовательных учреждений (фактическое количество дето-дней / плановое количество дето-дней * 100%) (%)\n","Процент",744,"Уровни эффективности: высокий - от 95% до 100%, достаточный - от 85% до 95%, низкий - менее 85%","Уровни эффективности: высокий - от 95% до 100%, достаточный - от 85% до 95%, низкий - менее 85%","Уровни эффективности: высокий - от 95% до 100%, достаточный - от 85% до 95%, низкий - менее 85%"]
[null,null,null,"Отсутствие обоснованных жалоб на качество предоставления услуги (шт); \n","Штука",796,0,0,0]
[null,null,null,"Укомплектованность педагогическими кадрами (от планового количества ставок) (%)\n\n","Процент",744,100,100,100]
[null,null,null," Доля педагогических кадров с высшим образованием в загородных лагерях (от общей численности педагогических работников, осуществляющих отдых детей в каникулярное время) (%)\n","Процент",744,"90 и более %","90 и более %","90 и более %"]
[]
["Допустимые отклонения от установленных показателей качества муниципальной услуги, в пределах которых муниципальное задание считается выполненным:",null,null,null,"±0%"]
[]
["3.2. Показатели, характеризующие объём муниципальных услуг"]
["Уникальный номер реестровой записи","Показатель, характеризующий содержание муниципальной услуги","Показатель, характеризующий условия (формы) оказания муниципальной услуги","Показатель объёма муниципальной услуги",null,null,"Значение показателя объёма муниципальной услуги",null,null,"Среднегодовой размер платы (цена, тариф)"]
[null,null,null,"наименование показателя","единица измерения по ОКЕИ"]
[null,null,null,null,"наименование","код","2016 год","2017 год","2018 год","2016 год","2017 год","2018 год"]
[1,2,3,4,5,6,7,8,9,10,11,12]
[{"$f":"A367","v":"697010000131005760410028000000000002005101114 "},null,"В каникулярное время с дневным пребыванием","Число человеко-дней пребывания (человеко-день)","человеко-день",540,{"$f":"#REF!","v":{"$error":"#REF!"}},{"$f":"G383","v":{"$error":"#REF!"}},{"$f":"H383","v":{"$error":"#REF!"}}]
[{"$f":"A371","v":"697010000131005760410028000000000001006101116 "},null,"в каникулярное время с круглосуточным пребыванием","Число человеко-дней пребывания (человеко-день)","человеко-день",540,{"$f":"#REF!","v":{"$error":"#REF!"}},{"$f":"G384","v":{"$error":"#REF!"}},{"$f":"H384","v":{"$error":"#REF!"}}]
[]
["Допустимые отклонения от установленных показателей объёма муниципальной услуги, в пределах которых муниципальное задание считается выполненным:",null,null,null,"±5%"]
[]
["4.Нормативные правовые акты,устанавливающие размер платы (цену,тариф) либо порядок её установления"]
[]
["Нормативный правовой акт"]
["вид","принявший орган","дата","номер","наименование"]
[]
["5. Порядок оказания муниципальной услуги "]
["5.1.Нормативные правовые акты , регулирующие порядок оказания муниципальной услуги "]
["Федеральный закон от 06.10.2003 № 131-ФЗ \"Об общих принципах организации местного самоуправления в Российской Федерации\";\nФедеральный закон от 06.10.1999 № 184-ФЗ \"Об общих принципах организации законодательных (представительных) и исполнительных органов государственной власти субъектов Российской Федерации\";\nФедеральный закон от 29.12.2012 № 273-ФЗ \"Об образовании в Российской Федерации\""]
[]
["5.2. Порядок информирования потенциальных потребителей муниципальной услуги"]
[]
["Способ информирования ",null,"Состав размещаемой информации ",null,"Частота обновления информации"]
[1,null,2,null,3]
["Размещение на официальном портале муниципального образования «Город Томск»",null,"Информация о муниципальных услугах, оказываемых в учреждении; итоговая аттестация выпускников; организация образовательного процесса в учреждении; организация предшкольного образования в учреждении",null,"Ежемесячно"]
["Размещение на официальном сайте учреждения",null,"Основные положения по организации образовательного процесса в образовательном учреждении",null,"Ежемесячно"]
[" Размещение на информационных стендах в учреждении",null,"Нормативно-правовое обеспечение образовательного процесса",null,"Ежегодно"]
["Консультации специалистами комитета по общему образованию департамента образования администрации Города Томска",null,"Информация об организации образовательного процесса в образовательном учреждении",null,"Постоянно"]
[]
["Часть 2. Сведения о выполняемых работах"]
["1. Наименование  работы :Организация и проведение олимпиад, конкурсов, мероприятий, направленных на выявление и развитие у обучающихся интеллектуальных и творческих способностей, способностей к занятиям физической культурой и спортом, интереса к научной (научно-исследовательской) деятельности, творческой деятельности, физкультурно-спортивной деятельности",null,null,null,null,null,null,null,"Уникальный номер по базовому перечню"]
["2. Категории потребителей муниципальной услуги:  В интересах обществ (Физические и юридические лица )",null,null,null,null,null,null,null,"11.034.1"]
["3. Показатели, характеризующие объём и (или) качество работы"]
["3.1. Показатели, характеризующие качество работы"]
["Уникальный номер реестровой записи","Показатель, характеризующий содержание работы","Показатель, характеризующий условия (формы) выполнения работы","Показатель качества работы",null,null,"Значение показателя качества работы"]
[null,null,null,"наименование показателя","единица измерения по ОКЕИ"]
[null,null,null,null,"наименование","код","2016 год","2017 год","2018 год"]
[1,2,3,4,5,6,7,8,9]
["11034100000000000005101",null,null,"Отсутствие нарушений организации общегородских (отраслевых) мероприятий (шт.)","штука",796,0,0,0]
[null,null,null,"Отсутствие обоснованных жалоб по организации общегородских (отраслевых) мероприятий (шт.)","штука",796,0,0,0]
[]
["Допустимые отклонения от установленных показателей качества работы, в пределах которых муниципальное задание считается выполненным",null,null,null,"±0%"]
[]
["3.2. Показатели, характеризующие объём работы"]
["Уникальный номер реестровой записи","Показатель, характеризующий содержание работы","Показатель, характеризующий условия (формы) выполнения работы","Показатель объёма муниципальной услуги",null,null,"Значение показателя объёма работы"]
[null,null,null,"наименование показателя","единица измерения по ОКЕИ"]
[null,null,null,null,"наименование","код","2016 год","2017 год","2018 год"]
[1,2,3,4,5,6,7,8,9]
[{"$f":"A415","v":"11034100000000000005101"},null,null,"Количество мероприятий (единица)","Единица ",642,{"$f":"#REF!","v":{"$error":"#REF!"}},{"$f":"G425","v":{"$error":"#REF!"}},{"$f":"H425","v":{"$error":"#REF!"}}]
[]
["Допустимые отклонения от установленных показателей объёма работы, в пределах которых муниципальное задание считается выполненным",null,null,null,"±5%"]
[]
["Часть 3. прочие сведения о муниципальном задании"]
["1.Основания для досрочного прекращения муниципального задания"]
["Ликвидация муниципального учреждения, осуществляющего оказание муниципальной услуги, или реорганизация путем присоединения к другому учреждению\nПерераспределение полномочий, повлекшее исключение из компетенции муниципального учреждения права по оказанию муниципальной услуги\nИсключение муниципальной услуги из консолидированного перечня\nИзменение законодательства РФ, исключающего расходные обязательства муниципального образования \"Город Томск\" как основание оказания услуг муниципальными учреждениями\nИные предусмотренные правовыми актами случаи, влекущие за собой невозможность оказания муниципальной услуги"]
[]
["2. Порядок контроля за исполнением муниципального задания"]
["Формы контроля",null,null,"Периодичность ",null,null,"Наименование органов администрации Города Томска, осуществляющих контроль"]
[1,null,null,2,null,null,3]
["Выездная проверка",null,null,"согласно плану-графику проверок департамента образования администрации Города Томска и/или ЦБ департамента образования администрации Города Томска",null,null,"Департамент образования администрации Города Томска  и/или ЦБ департамента образования администрации Города Томска"]
["Контроль посредством проверки предоставляемой отчетности об исполнении муниципального задания",null,null,"согласно действующему постановлению администрации Города Томска"]
[]
["3.Требования к отчетности об исполнении муниципального задания"]
["3.1.Форма отчета об исполнении муниципального задания (Приложения 2, 3 к муниципальному заданию)"]
[]
["3.2.Сроки представления отчетов об исполнении муниципального задания"]
["Учреждение предоставляет в департамент образования администрации Города Томска:"]
["1) отчет о выполнении муниципального задания за год муниципальными учреждениями по форме приложения 2 к форме муниципального задания представляется муниципальными учреждениями в уполномоченный орган (ГРБС) на бумажном носителе и в электронном виде посредством электронной системы «Он-лайн Своды»  в срок до 15 января, следующего за отчетным. Годовой отчет утверждается руководителем уполномоченного органа (ГРБС);"]
["2) отчет о выполнении муниципального задания за квартал муниципальными учреждениями по форме приложения 3 к форме муниципального задания представляется муниципальными учреждениями в уполномоченный орган (ГРБС) на бумажном носителе и в электронном виде посредством электронной системы «Он-лайн Своды» срок до 15  числа, следующего за отчетным."]
[]
["3.3.Иные требования к отчетности об исполнении муниципального задания"]
["Учреждение обязано предоставлять департаменту образования администрации Города Томска иные документы, необходимые для обеспечения контроля за организацией образовательного учреждения и за расходованием бюджетных средств, а также бухгалтерскую отчетность в сроки и по формам в соответствии с действующим законодательством. Муниципальное бюджетное или автономное учреждение предоставляет уполномоченному органу (ГРБС) предварительный отчет об исполнении муниципального задания за соответствующий финансовый год в срок до 01 декабря соответствующего финансового года. "]
["Если показатели объема, указанные в предварительном отчете, меньше показателей, установленных в муниципальном задании, то соответствующие средства субсидии подлежат перечислению в бюджет в соответствии с бюджетным законодательством Российской Федерации."]
[]
["4.Иная информация, необходимая для исполнения (контроля за исполнением) муниципального задания"]
["Сэкономленные при выполнении муниципального задания в части оказания услуг средства в случае необходимости могут быть направлены на выполнение муниципального задания в части возмещения нормативных затрат на оплату налогов, в качестве объекта налогообложения по которым признается недвижимое и особо ценное движимое имущество, закрепленное за учреждением или приобретенное учреждением за счет средств, выделенных ему уполномоченным органом на приобретение такого имущества, в том числе земельных участков. И наоборот, экономия от выполнения муниципального задания в части возмещения нормативных затрат на оплату налогов, в качестве объекта налогообложения по которым признается недвижимое и особо ценное движимое имущество, закрепленное за учреждением или приобретенное учреждением за счет средств, выделенных ему уполномоченным органом на приобретение такого имущества, в том числе земельных участков, в случае необходимости может быть направлена на выполнение муниципального задания в части оказания услуг."]

{"sheet":"LOG","index":1,"n_rows":9,"n_cols":1,"rows_kept":9,"cut":false,"hidden":false,"merged":[]}
["на листе - МЗшк65 удалена строка - 91 c текстом - Охват обучающихся дополнительным образованием (от общей численности обучающихся) без внеурочной деятельности (%) в ячейке - $F$91"]
["на листе - МЗшк65 удалена строка - 96 c текстом - Охват обучающихся дополнительным образованием (от общей численности обучающихся) без внеурочной деятельности (%) в ячейке - $F$96"]
["на листе - МЗшк65 удалена строка - 144 c текстом - Охват обучающихся дополнительным образованием (от общей численности обучающихся) без внеурочной деятельности (%) в ячейке - $F$144"]
["на листе - МЗшк65 удалена строка - 149 c текстом - Охват обучающихся дополнительным образованием (от общей численности обучающихся) без внеурочной деятельности (%) в ячейке - $F$149"]
["на листе - МЗТПУ удалена строка - 43 c текстом - Охват обучающихся дополнительным образованием (от общей численности обучающихся) без внеурочной деятельности (%) в ячейке - $F$43"]
["на листе - МЗТПУ удалена строка - 90 c текстом - Охват обучающихся дополнительным образованием (от общей численности обучающихся) без внеурочной деятельности (%) в ячейке - $F$90"]
["на листе - МЗТПУ удалена строка - 95 c текстом - Охват обучающихся дополнительным образованием (от общей численности обучающихся) без внеурочной деятельности (%) в ячейке - $F$95"]
["на листе - МЗТПУ удалена строка - 143 c текстом - Охват обучающихся дополнительным образованием (от общей численности обучающихся) без внеурочной деятельности (%) в ячейке - $F$143"]
["на листе - МЗТПУ удалена строка - 148 c текстом - Охват обучающихся дополнительным образованием (от общей численности обучающихся) без внеурочной деятельности (%) в ячейке - $F$148"]

{"sheet":"МЗТПУ","index":2,"n_rows":451,"n_cols":14,"rows_kept":451,"cut":false,"hidden":false,"merged":[[12,11,13,11],[12,12,13,12],[16,2,16,3],[16,4,16,6],[17,2,17,6],[18,2,18,6],[20,2,20,6],[31,3,31,6],[23,2,23,6],[24,2,24,6],[25,2,25,6],[27,2,27,3],[27,4,27,6],[21,2,21,6],[22,2,22,6],[29,0,29,10],[10,4,10,5],[11,0,11,10],[12,0,12,10],[31,8,31,9],[32,0,32,2],[32,3,32,4],[32,8,32,9],[31,0,31,2],[36,6,36,7],[19,2,19,6],[40,0,42,0],[40,1,42,1],[40,2,42,2],[33,0,33,4],[34,0,34,4],[35,0,38,0],[35,1,37,3],[35,4,37,4],[49,10,50,10],[40,3,42,3],[40,4,42,4],[35,5,35,7],[47,5,47,7],[44,0,44,3],[37,8,38,8],[37,9,38,9],[37,10,38,10],[35,8,36,10],[36,5,38,5],[37,6,38,6],[37,7,38,7],[47,11,48,13],[48,5,50,5],[48,6,48,7],[49,6,50,6],[49,7,50,7],[49,13,50,13],[68,2,68,3],[68,4,68,5],[62,0,62,4],[63,0,63,3],[64,0,64,4],[47,8,48,10],[56,0,56,4],[58,0,58,4],[49,8,50,8],[49,11,50,11],[49,12,50,12],[49,9,50,9],[66,0,66,4],[68,0,68,1],[69,2,69,3],[69,4,69,5],[46,0,46,4],[47,0,50,0],[47,1,49,3],[47,4,50,4],[54,0,54,3],[77,8,77,9],[73,0,73,1],[73,2,73,3],[73,4,73,5],[69,0,69,1],[76,8,76,9],[70,0,70,1],[70,2,70,3],[70,4,70,5],[72,0,72,1],[72,2,72,3],[72,4,72,5],[76,3,76,6],[77,0,77,2],[77,3,77,4],[78,0,78,4],[79,0,79,4],[71,0,71,1],[71,2,71,3],[71,4,71,5],[76,0,76,2],[80,0,83,0],[80,1,82,3],[80,4,83,4],[80,8,80,10],[81,5,83,5],[81,6,81,7],[81,8,83,8],[81,9,83,9],[81,10,83,10],[82,6,83,6],[82,7,83,7],[80,5,80,7],[85,4,89,4],[90,0,94,0],[90,1,94,1],[90,2,94,2],[90,3,94,3],[90,4,94,4],[85,0,89,0],[85,1,89,1],[85,2,89,2],[85,3,89,3],[99,8,100,10],[111,0,111,4],[99,5,99,7],[96,0,96,3],[98,0,98,4],[99,0,101,0],[99,1,101,3],[99,4,102,4],[99,11,100,13],[100,5,102,5],[100,6,100,7],[101,6,102,6],[101,7,102,7],[101,8,102,8],[101,9,102,9],[101,12,102,12],[101,13,102,13],[107,0,107,3],[109,0,109,4],[101,10,102,10],[101,11,102,11],[122,4,122,5],[121,0,121,1],[121,2,121,3],[121,4,121,5],[115,0,115,5],[114,0,114,4],[129,8,129,9],[130,0,130,4],[134,9,136,9],[116,0,116,4],[118,0,118,4],[120,0,120,1],[120,2,120,3],[120,4,120,5],[122,0,122,1],[122,2,122,3],[133,8,133,10],[125,0,125,1],[125,2,125,3],[125,4,125,5],[128,0,128,2],[128,3,128,6],[133,5,133,7],[128,8,128,9],[131,0,131,4],[133,0,136,0],[134,8,136,8],[149,0,149,3],[123,0,123,1],[123,2,123,3],[123,4,123,5],[124,0,124,1],[124,2,124,3],[124,4,124,5],[129,0,129,2],[129,3,129,4],[151,0,151,4],[133,1,135,3],[133,4,136,4],[134,10,136,10],[135,6,136,6],[135,7,136,7],[143,4,147,4],[134,5,136,5],[134,6,134,7],[143,2,147,2],[138,0,142,0],[138,1,142,1],[138,2,142,2],[138,3,142,3],[138,4,142,4],[143,0,147,0],[143,1,147,1],[143,3,147,3],[153,0,155,0],[153,1,155,3],[153,4,156,4],[169,0,169,5],[168,0,168,4],[153,8,154,10],[161,0,161,3],[163,0,163,4],[165,0,165,4],[153,5,153,7],[153,11,154,13],[154,5,156,5],[154,6,154,7],[155,6,156,6],[155,7,156,7],[155,8,156,8],[155,9,156,9],[155,13,156,13],[155,10,156,10],[155,11,156,11],[155,12,156,12],[176,0,176,1],[176,2,176,3],[176,4,176,5],[175,0,175,1],[175,2,175,3],[175,4,175,5],[170,0,170,3],[172,0,172,4],[174,0,174,1],[174,2,174,3],[174,4,174,5],[182,8,182,9],[188,9,189,9],[188,8,189,8],[187,6,187,7],[188,6,189,6],[179,0,179,1],[179,2,179,3],[179,4,179,5],[186,4,189,4],[186,1,188,3],[182,0,182,2],[182,3,182,6],[188,10,189,10],[183,0,183,2],[183,3,183,6],[183,8,183,9],[184,0,184,4],[185,0,185,4],[186,0,189,0],[186,8,186,10],[187,5,189,5],[188,7,189,7],[178,0,178,1],[178,2,178,3],[178,4,178,5],[177,0,177,1],[177,2,177,3],[177,4,177,5],[191,0,193,0],[191,1,196,1],[191,2,196,2],[191,3,193,3],[194,0,196,0],[194,3,196,3],[191,4,202,4],[197,0,199,0],[197,1,202,1],[197,2,202,2],[197,3,199,3],[200,0,202,0],[200,3,202,3],[204,0,204,3],[206,0,206,4],[207,0,209,0],[207,1,209,3],[207,4,210,4],[207,8,208,10],[207,11,208,13],[208,5,210,5],[208,6,208,7],[209,6,210,6],[209,7,210,7],[209,8,210,8],[209,12,210,12],[209,13,210,13],[207,5,207,7],[212,1,215,1],[212,2,213,2],[212,4,215,4],[214,2,215,2],[226,0,226,4],[228,0,228,4],[209,11,210,11],[217,0,217,3],[219,0,219,4],[221,0,221,4],[224,0,224,4],[225,0,225,5],[209,9,210,9],[209,10,210,10],[230,0,230,1],[230,2,230,3],[230,4,230,5],[232,0,232,1],[232,2,232,3],[232,4,232,5],[231,0,231,1],[231,2,231,3],[231,4,231,5],[233,0,233,1],[233,2,233,3],[233,4,233,5],[234,0,234,1],[234,2,234,3],[234,4,234,5],[239,0,239,2],[239,3,239,6],[235,0,235,1],[235,2,235,3],[235,4,235,5],[238,0,238,2],[238,3,238,6],[244,5,245,5],[253,0,255,0],[253,1,258,1],[253,2,255,2],[253,3,258,3],[256,0,258,0],[256,2,258,2],[238,8,238,9],[243,9,245,9],[243,5,243,6],[243,7,245,7],[243,8,245,8],[239,8,239,9],[240,0,240,4],[241,0,241,4],[242,0,245,0],[242,1,244,2],[243,4,245,4],[242,3,245,3],[242,4,242,6],[242,7,242,9],[244,6,245,6],[260,0,260,3],[262,0,262,4],[263,0,265,0],[263,1,265,2],[263,3,266,3],[263,4,263,6],[265,10,266,10],[247,0,249,0],[247,1,252,1],[247,2,249,2],[247,3,252,3],[250,0,252,0],[250,2,252,2],[263,7,264,9],[263,10,264,12],[264,4,266,4],[264,5,264,6],[265,5,266,5],[265,6,266,6],[265,7,266,7],[265,8,266,8],[265,9,266,9],[265,12,266,12],[282,0,282,5],[265,11,266,11],[273,0,273,3],[275,0,275,4],[277,0,277,5],[278,4,278,5],[279,4,279,5],[268,1,269,1],[268,3,271,3],[270,1,271,1],[280,0,280,4],[281,0,281,5],[294,8,294,9],[295,8,295,9],[296,0,296,4],[290,0,290,1],[290,2,290,3],[288,2,288,3],[288,4,288,5],[287,0,287,1],[287,2,287,3],[287,4,287,5],[295,0,295,2],[295,3,295,6],[291,0,291,1],[291,2,291,3],[291,4,291,5],[290,4,290,5],[284,0,284,4],[286,0,286,1],[286,2,286,3],[286,4,286,5],[289,0,289,1],[289,2,289,3],[289,4,289,5],[288,0,288,1],[299,5,300,5],[297,0,297,4],[298,0,300,0],[298,1,299,3],[298,4,300,4],[294,0,294,2],[294,3,294,6],[298,8,298,10],[323,0,323,4],[299,9,300,9],[305,0,307,0],[317,3,319,3],[305,3,307,3],[308,0,310,0],[308,3,310,3],[311,0,313,0],[314,0,316,0],[314,3,316,3],[299,10,300,10],[298,5,298,7],[299,6,299,7],[299,8,300,8],[302,0,304,0],[302,1,319,1],[302,2,319,2],[302,3,304,3],[326,12,327,12],[326,13,327,13],[324,5,324,7],[324,8,325,10],[321,0,321,3],[302,4,319,4],[317,0,319,0],[311,3,313,3],[324,11,325,13],[325,6,325,7],[326,6,327,6],[326,7,327,7],[326,8,327,8],[326,9,327,9],[326,10,327,10],[326,11,327,11],[324,0,326,0],[324,1,326,3],[324,4,327,4],[351,0,351,1],[329,1,334,1],[329,2,334,2],[329,4,334,4],[336,0,336,3],[338,0,338,4],[340,0,340,4],[343,0,343,4],[349,0,349,1],[349,2,349,3],[344,0,344,5],[345,0,345,4],[347,0,347,4],[350,0,350,1],[350,2,350,3],[350,4,350,5],[349,4,349,5],[351,2,351,3],[351,4,351,5],[352,0,352,1],[352,2,352,3],[352,4,352,5],[353,0,353,1],[353,2,353,3],[353,4,353,5],[361,1,363,1],[361,2,363,2],[360,0,360,4],[354,0,354,1],[354,2,354,3],[354,4,354,5],[361,3,361,5],[357,8,357,9],[362,3,363,3],[362,4,362,5],[357,0,357,2],[357,3,357,6],[358,8,358,9],[359,0,359,4],[358,0,358,2],[358,3,358,6],[361,0,363,0],[361,6,361,8],[377,9,378,11],[378,3,379,3],[378,4,378,5],[365,0,368,0],[365,1,372,1],[365,2,368,2],[369,0,372,0],[369,2,372,2],[374,0,374,3],[397,4,397,5],[377,6,378,8],[377,1,379,1],[377,2,379,2],[377,3,377,5],[376,0,376,4],[377,0,379,0],[388,0,388,4],[391,0,391,4],[392,0,392,5],[381,1,382,1],[384,0,384,3],[393,0,393,5],[395,0,395,4],[397,0,397,1],[397,2,397,3],[386,0,386,4],[399,0,399,1],[399,2,399,3],[399,4,399,5],[398,0,398,1],[398,2,398,3],[398,4,398,5],[400,0,400,1],[400,2,400,3],[400,4,400,5],[401,0,401,1],[401,2,401,3],[401,4,401,5],[402,0,402,1],[402,2,402,3],[402,4,402,5],[409,6,410,8],[410,3,411,3],[410,4,410,5],[404,0,404,10],[405,0,405,6],[405,8,405,9],[406,0,406,4],[406,8,406,9],[407,0,407,4],[408,0,408,4],[409,0,411,0],[409,1,411,1],[409,2,411,2],[409,3,409,5],[413,0,414,0],[416,0,416,3],[418,0,418,4],[419,0,421,0],[419,1,421,1],[419,2,421,2],[419,3,419,5],[427,0,427,10],[428,0,428,3],[428,4,428,7],[428,8,428,10],[419,6,420,8],[420,3,421,3],[420,4,420,5],[425,0,425,3],[443,8,443,10],[429,0,429,7],[429,8,429,10],[431,0,431,3],[432,0,432,2],[432,3,432,5],[432,6,432,8],[433,0,433,2],[433,3,433,5],[433,6,433,8],[450,0,450,10],[446,0,446,7],[446,8,446,10],[447,0,447,7],[449,0,449,3],[449,4,449,7],[449,8,449,10],[445,0,445,7],[434,0,434,2],[434,3,434,5],[434,6,435,8],[435,0,435,2],[435,3,435,5],[445,8,445,10],[437,0,437,3],[437,4,437,7],[438,0,438,7],[440,0,440,7],[441,0,441,3],[441,4,441,7],[441,8,441,10],[442,0,442,7],[442,8,442,10],[443,0,443,7]]}
[]
[]
[]
[null,"СОГЛАСОВАНО ",null,null,null,null,null,null,null," УТВЕРЖДАЮ"]
[null,"_________________________________",null,null,null,null,null,null,null,"_________________________О.В.  "]
[null,"(подпись, ф.и.о. руководителя ",null,null,null,null,null,null,null,"(подпись, ф.и.о. начальника департамента"]
[null,"муниципального учреждения)",null,null,null,null,null,null,null," образования администрации Города Томска)"]
[null,"\"______\"___________________20____г.",null,null,null,null,null,null,null,"\"21\" декабря 2016 г."]
[]
[]
[null,null,null,null," МУНИЦИПАЛЬНОЕ ЗАДАНИЕ №",null,"2/44"]
["на 2016 год и плановый период 2017 и 2018 годов"]
["по состоянию на 21.12.2016 года"]
[]
[]
[null,null,null,null,null,null,null,null,null,"Коды"]
[null,null,"Наименование муниципального учреждения",null,{"$f":"#REF!","v":{"$error":"#REF!"}},null,null,null,"Форма по ОКУД"]
[null,null," ",null,null,null,null,null,"Дата по сводному реестру"]
[null,null,"Реализация основных общеобразовательных программ начального общего образования",null,null,null,null,null,"по ОКВЭД","80.10.2"]
[null,null,"Реализация основных общеобразовательных программ основного общего образования",null,null,null,null,null,"по ОКВЭД","80.21.1"]
[null,null,"Реализация основных общеобразовательных программ среднего общего образования",null,null,null,null,null,"по ОКВЭД","80.21.2"]
[null,null,"Реализация основных общеобразовательных программ дошкольного образования",null,null,null,null,null,"по ОКВЭД","80.10.1"]
[null,null,"Присмотр и уход",null,null,null,null,null,"по ОКВЭД","85.32"]
[null,null,"Реализация дополнительных общеразвивающих программ",null,null,null,null,null,"по ОКВЭД","80.10.3"]
[null,null,"Организация отдыха детей и молодежи",null,null,null,null,null,"по ОКВЭД"," 92,7; 92,72; 55,21; 55.23.1"]
[null,null,"Организация и проведение олимпиад, конкурсов, мероприятий, направленных на выявление и развитие у обучающихся интеллектуальных и творческих способностей, способностей к занятиям физической культурой и спортом, интереса к научной (научно-исследовательской) деятельности, творческой деятельности, физкультурно-спортивной деятельности",null,null,null,null,null,"по ОКВЭД",80]
[]
[null,null,"Вид муниципального учреждения ",null,"Общеобразовательная организация"]
[]
["Часть 1. Сведения об оказываемых муниципальных услугах."]
[null,null,null,null,"Раздел  1  "]
["1. Наименование муниципальной услуги:",null,null," Реализация основных общеобразовательных программ начального общего образования",null,null,null,null,"Уникальный номер по базовому перечню"]
["2. Категории потребителей муниципальной услуги:",null,null,"Физические лица",null,null,null,null,"11.787.0"]
["3. Показатели, характеризующие объём и (или) качество муниципальных услуг"]
["3.1. Показатели, характеризующие качество муниципальных услуг"]
["Уникальный номер реестровой записи","Показатель, характеризующий содержание муниципальной услуги",null,null,"Показатель, характеризующий условия (формы) оказания муниципальной услуги","Показатель качества муниципальной услуги",null,null,"Значение показателя качества муниципальной услуги"]
[null,null,null,null,null,"наименование показателя","единица измерения по ОКЕИ"]
[null,null,null,null,null,null,"наименование","код","2016 год","2017 год","2018 год"]
[null,"Виды образовательных программ","Категория потребителей","\nМесто обучения ","Форма обучения"]
[1,2,3,4,5,6,10,11,12,13,14]
["697010000131005760411787000301000101000101117 ","не указано","не указано","не указано","Очная","Доля обучающихся, получивших начальное общее образование и перешедших на следующую ступень образования (от общей численности выпускников первой ступени) (%)\n","Процент",744,95,95,95]
[null,null,"не указано","не указано","Очная"," Доля педагогических кадров, прошедших аттестацию (от общей численности работников, подлежащих аттестации) (%)\n","Процент",744,100,100,100]
[null,null,"не указано","не указано","Очная","Обеспечение учебниками и учебными пособиями обучающихся (от общего количества обучающихся) (%)","Процент",744,100,100,100]
[]
["Допустимые отклонения от установленных показателей качества муниципальной услуги, в пределах которых муниципальное задание считается выполненным:",null,null,null,"±0%"]
[]
["3.2. Показатели, характеризующие объём муниципальных услуг"]
["Уникальный номер реестровой записи","Показатель, характеризующий содержание муниципальной услуги",null,null,"Показатель, характеризующий условия (формы) оказания муниципальной услуги","Показатель объёма муниципальной услуги",null,null,"Значение показателя объёма муниципальной услуги",null,null,"Среднегодовой размер платы (цена, тариф)"]
[null,null,null,null,null,"наименование показателя","единица измерения по ОКЕИ"]
[null,null,null,null,null,null,"наименование","код","2016 год","2017 год","2018 год","2016 год","2017 год","2018 год"]
[null,"Виды образовательных программ","\nКатегория потребителей","\nМесто обучения "]
[1,2,3,4,5,6,7,8,9,10,11,12,13,14]
["697010000131005760411791000301000101004101114 ","не указано","не указано","не указано","Очная","Число обучающихся (человек)","человек",792,{"$f":"#REF!","v":{"$error":"#REF!"}},{"$f":"I53","v":{"$error":"#REF!"}},{"$f":"J53","v":{"$error":"#REF!"}},0,0,0]
[]
["Допустимые отклонения от установленных показателей объёма муниципальной услуги, в пределах которых муниципальное задание считается выполненным:",null,null,null,"±5%"]
[]
["4.Нормативные правовые акты,устанавливающие размер платы (цену,тариф) либо порядок её установления"]
[]
["Нормативный правовой акт"]
["вид","принявший орган","дата","номер","наименование"]
[]
[]
["5. Порядок оказания муниципальной услуги "]
["5.1.Нормативные правовые акты , регулирующие порядок оказания муниципальной услуги "]
["Федеральный закон от 24.06.1999 № 120-ФЗ \"Об основах системы профилактики безнадзорности и правонарушений несовершеннолетних\";\nФедеральный закон от 06.10.2003 № 131-ФЗ \"Об общих принципах организации местного самоуправления в Российской Федерации\"; \nФедеральный закон от 06.10.1999 № 184-ФЗ \"Об общих принципах организации законодательных (представительных) и исполнительных органов государственной власти субъектов Российской Федерации\"; Федеральный закон от 30.12.2012 № 273-ФЗ \"Об образовании в Российской Федерации\""]
[]
["5.2. Порядок информирования потенциальных потребителей муниципальной услуги"]
[]
["Способ информирования ",null,"Состав размещаемой информации ",null,"Частота обновления информации"]
[1,null,2,null,3]
["Размещение на официальном портале муниципального образования «Город Томск»",null,"Информация о муниципальных услугах, оказываемых в учреждении; итоговая аттестация выпускников; организация образовательного процесса в учреждении; организация предшкольного образования в учреждении",null,"Ежемесячно"]
["Размещение на официальном сайте учреждения",null,"Основные положения по организации образовательного процесса в образовательном учреждении",null,"Ежемесячно"]
[" Размещение на информационных стендах в учреждении",null,"Нормативно-правовое обеспечение образовательного процесса",null,"Ежегодно"]
["Консультации специалистами комитета по общему образованию департамента образования администрации Города Томска",null,"Информация об организации образовательного процесса в образовательном учреждении",null,"Постоянно"]
[]
[null,null,null,null,"Раздел  2  "]
["1. Наименование муниципальной услуги:",null,null,"Реализация основных общеобразовательных программ основного общего образования",null,null,null,null,"Уникальный номер по базовому перечню"]
["2. Категории потребителей муниципальной услуги:",null,null,"Физические лица",null,null,null,null,"11.791.0"]
["3. Показатели, характеризующие объём и (или) качество муниципальных услуг"]
["3.1. Показатели, характеризующие качество муниципальных услуг"]
["Уникальный номер реестровой записи","Показатель, характеризующий содержание муниципальной услуги",null,null,"Показатель, характеризующий условия (формы) оказания муниципальной услуги","Показатель качества муниципальной услуги",null,null,"Значение показателя качества муниципальной услуги"]
[null,null,null,null,null,"наименование показателя","единица измерения по ОКЕИ",null,"2016 год","2017 год","2018 год"]
[null,null,null,null,null,null,"наименование","код"]
[null,"Виды образовательных программ","\nКатегория потребителей","\nМесто обучения "]
[1,2,3,4,5,6,7,8,9,10,11]
["697010000131005760411791000301000101004101114 ","не указано","не указано","не указано","Очная","Доля обучающихся, получивших начальное общее образование и перешедших на следующую ступень образования (от общей численности выпускников первой ступени) (%)\n","Процент",744,95,95,95]
[null,"не указано","не указано","не указано",null," Доля обучающихся, получивших аттестат о среднем общем образовании (от общей численности выпускников 11-х классов) (%)\n","Процент",744,98,98,98]
[null,"не указано","не указано","не указано",null," Доля обучающихся, не получивших аттестат об основном общем образовании (от общей численности выпускников 9-х классов) (%)","Процент",744,5,5,5]
[null,"не указано","не указано","не указано",null,"Доля педагогических кадров, прошедших аттестацию (от общей численности работников, подлежащих аттестации) (%)","Процент",744,100,100,100]
[null,"не указано","не указано","не указано",null," Обеспечение учебниками и учебными пособиями обучающихся (от общего количества обучающихся) (%)","Процент",744,100,100,100]
["697010000131005760411791000301000105000101115 ","не указано","не указано","не указано","очно-заочная","Доля обучающихся, получивших начальное общее образование и перешедших на следующую ступень образования (от общей численности выпускников первой ступени) (%)\n","Процент",744,95,95,95]
[null,"не указано","не указано","не указано",null," Доля обучающихся, получивших аттестат о среднем общем образовании (от общей численности выпускников 11-х классов) (%)\n","Процент",744,98,98,98]
[null,"не указано","не указано","не указано",null," Доля обучающихся, не получивших аттестат об основном общем образовании (от общей численности выпускников 9-х классов) (%)","Процент",744,5,5,5]
[null,"не указано","не указано","не указано",null,"Доля педагогических кадров, прошедших аттестацию (от общей численности работников, подлежащих аттестации) (%)","Процент",744,100,100,100]
[null,"не указано","не указано","не указано",null," Обеспечение учебниками и учебными пособиями обучающихся (от общего количества обучающихся) (%)","Процент",744,100,100,100]
[]
["Допустимые отклонения от установленных показателей качества муниципальной услуги, в пределах которых муниципальное задание считается выполненным:",null,null,null,"±0%"]
[]
["3.2. Показатели, характеризующие объём муниципальных услуг"]
["Уникальный номер реестровой записи","Показатель, характеризующий содержание муниципальной услуги",null,null,"Показатель, характеризующий условия (формы) оказания муниципальной услуги","Показатель объёма муниципальной услуги",null,null,"Значение показателя объёма муниципальной услуги",null,null,"Среднегодовой размер платы (цена, тариф)"]
[null,null,null,null,null,"наименование показателя","единица измерения по ОКЕИ"]
[null,null,null,null,null,null,"наименование","код","2016 год","2017 год","2018 год","2016 год","2017 год","2018 год"]
[null,"Виды образовательных программ","\nКатегория потребителей","\nМесто обучения "]
[1,2,3,4,5,7,8,9,10,11,12,12,13,14]
["697010000131005760411791000301000101004101114 ","не указано","не указано","не указано","Очная","Число обучающихся (человек)","человек",792,{"$f":"#REF!","v":{"$error":"#REF!"}},{"$f":"I105","v":{"$error":"#REF!"}},{"$f":"J105","v":{"$error":"#REF!"}},0,0,0]
["697010000131005760411791000301000105000101115 ","не указано","не указано","не указано","Очно-заочная","Число обучающихся (человек)","человек",792,{"$f":"#REF!","v":{"$error":"#REF!"}},{"$f":"I106","v":{"$error":"#REF!"}},{"$f":"J106","v":{"$error":"#REF!"}},0,0,0]
[]
["Допустимые отклонения от установленных показателей объёма муниципальной услуги, в пределах которых муниципальное задание считается выполненным:",null,null,null,"±5%"]
[]
["4.Нормативные правовые акты,устанавливающие размер платы (цену,тариф) либо порядок её установления"]
[]
["Нормативный правовой акт"]
["вид","принявший орган","дата","номер","наименование"]
[]
["5. Порядок оказания муниципальной услуги "]
["5.1.Нормативные правовые акты , регулирующие порядок оказания муниципальной услуги "]
["Федеральный закон от 24.06.1999 № 120-ФЗ \"Об основах системы профилактики безнадзорности и правонарушений несовершеннолетних\"; \nФедеральный закон от 06.10.2003 № 131-ФЗ \"Об общих принципах организации местного самоуправления в Российской Федерации\"; \nФедеральный закон от 06.10.1999 № 184-ФЗ \"Об общих принципах организации законодательных (представительных) и исполнительных органов государственной власти субъектов Российской Федерации\"; Федеральный закон от 30.12.2012 № 273-ФЗ \"Об образовании в Российской Федерации\""]
[]
["5.2. Порядок информирования потенциальных потребителей муниципальной услуги"]
[]
["Способ информирования ",null,"Состав размещаемой информации ",null,"Частота обновления информации"]
[1,null,2,null,3]
["Размещение на официальном портале муниципального образования «Город Томск»",null,"Информация о муниципальных услугах, оказываемых в учреждении; итоговая аттестация выпускников; организация образовательного процесса в учреждении; организация предшкольного образования в учреждении",null,"Ежемесячно"]
["Размещение на официальном сайте учреждения",null,"Основные положения по организации образовательного процесса в образовательном учреждении",null,"Ежемесячно"]
[" Размещение на информационных стендах в учреждении",null,"Нормативно-правовое обеспечение образовательного процесса",null,"Ежегодно"]
["Консультации специалистами комитета по общему образованию департамента образования администрации Города Томска",null,"Информация об организации образовательного процесса в образовательном учреждении",null,"Постоянно"]
[]
[null,null,null,null,"Раздел  3  "]
["1. Наименование муниципальной услуги:",null,null,"Реализация основных общеобразовательных программ среднего общего образования",null,null,null,null,"Уникальный номер по базовому перечню"]
["2. Категории потребителей муниципальной услуги:",null,null,"Физические лица",null,null,null,null,"11.794.0"]
["3. Показатели, характеризующие объём и (или) качество муниципальных услуг"]
["3.1. Показатели, характеризующие качество муниципальных услуг"]
[]
["Уникальный номер реестровой записи","Показатель, характеризующий содержание муниципальной услуги",null,null,"Показатель, характеризующий условия (формы) оказания муниципальной услуги","Показатель качества муниципальной услуги",null,null,"Значение показателя качества муниципальной услуги"]
[null,null,null,null,null,"наименование показателя","единица измерения по ОКЕИ",null,"2016 год","2017 год","2018 год"]
[null,null,null,null,null,null,"наименование","код"]
[null,"Виды образовательных программ","\nКатегория потребителей","\nМесто обучения "]
[1,2,3,4,5,6,7,8,9,10,11]
["697010000131005760411794000301000101001101102","не указано","не указано","не указано","Очная","Доля обучающихся, получивших начальное общее образование и перешедших на следующую ступень образования (от общей численности выпускников первой ступени) (%)\n","Процент",744,95,95,95]
[null,"не указано","не указано","не указано",null," Доля обучающихся, получивших аттестат о среднем общем образовании (от общей численности выпускников 11-х классов) (%)\n","Процент",744,98,98,98]
[null,"не указано","не указано","не указано",null," Доля обучающихся, не получивших аттестат об основном общем образовании (от общей численности выпускников 9-х классов) (%)","Процент",744,5,5,5]
[null,"не указано","не указано","не указано",null,"Доля педагогических кадров, прошедших аттестацию (от общей численности работников, подлежащих аттестации) (%)","Процент",744,100,100,100]
[null,"не указано","не указано","не указано",null," Обеспечение учебниками и учебными пособиями обучающихся (от общего количества обучающихся) (%)","Процент",744,100,100,100]
[1.17941003010001E+22,"не указано","не указано","не указано","очно-заочная","Доля обучающихся, получивших начальное общее образование и перешедших на следующую ступень образования (от общей численности выпускников первой ступени) (%)\n","Процент",744,95,95,95]
[null,"не указано","не указано","не указано",null," Доля обучающихся, получивших аттестат о среднем общем образовании (от общей численности выпускников 11-х классов) (%)\n","Процент",744,98,98,98]
[null,"не указано","не указано","не указано",null," Доля обучающихся, не получивших аттестат об основном общем образовании (от общей численности выпускников 9-х классов) (%)","Процент",744,5,5,5]
[null,"не указано","не указано","не указано",null,"Доля педагогических кадров, прошедших аттестацию (от общей численности работников, подлежащих аттестации) (%)","Процент",744,100,100,100]
[null,"не указано","не указано","не указано",null," Обеспечение учебниками и учебными пособиями обучающихся (от общего количества обучающихся) (%)","Процент",744,100,100,100]
[]
["Допустимые отклонения от установленных показателей качества муниципальной услуги, в пределах которых муниципальное задание считается выполненным:",null,null,null,"±0%"]
[]
["3.2. Показатели, характеризующие объём муниципальных услуг"]
[]
["Уникальный номер реестровой записи","Показатель, характеризующий содержание муниципальной услуги",null,null,"Показатель, характеризующий условия (формы) оказания муниципальной услуги","Показатель объёма муниципальной услуги",null,null,"Значение показателя объёма муниципальной услуги",null,null,"Среднегодовой размер платы (цена, тариф)"]
[null,null,null,null,null,"наименование показателя","единица измерения по ОКЕИ"]
[null,null,null,null,null,null,"наименование","код","2016 год","2017 год","2018 год","2016 год","2017 год","2018 год"]
[null,"Виды образовательных программ","\nКатегория потребителей","\nМесто обучения "]
[1,2,3,4,5,7,8,9,10,11,12,13,14,15]
["697010000131005760411794000301000101001101102","не указано","не указано","не указано","Очная","Число обучающихся (человек)","человек",792,{"$f":"#REF!","v":{"$error":"#REF!"}},{"$f":"I159","v":{"$error":"#REF!"}},{"$f":"J159","v":{"$error":"#REF!"}},0,0,0]
[{"$f":"A144","v":1.17941003010001E+22},"не указано","не указано","не указано","Очно-заочная","Число обучающихся (человек)","человек",792,{"$f":"#REF!","v":{"$error":"#REF!"}},{"$f":"I160","v":{"$error":"#REF!"}},{"$f":"J160","v":{"$error":"#REF!"}},0,0,0]
[]
["Допустимые отклонения от установленных показателей объёма муниципальной услуги, в пределах которых муниципальное задание считается выполненным:",null,null,null,"±5%"]
[]
["4.Нормативные правовые акты,устанавливающие размер платы (цену,тариф) либо порядок её установления"]
[]
["Нормативный правовой акт"]
["вид","принявший орган","дата","номер","наименование"]
[]
["5. Порядок оказания муниципальной услуги "]
["5.1.Нормативные правовые акты , регулирующие порядок оказания муниципальной услуги "]
["Федеральный закон от 24.06.1999 № 120-ФЗ \"Об основах системы профилактики безнадзорности и правонарушений несовершеннолетних\";\n Федеральный закон от 06.10.2003 № 131-ФЗ \"Об общих принципах организации местного самоуправления в Российской Федерации\"; \nФедеральный закон от 06.10.1999 № 184-ФЗ \"Об общих принципах организации законодательных (представительных) и исполнительных органов государственной власти субъектов Российской Федерации\"; Федеральный закон от 30.12.2012 № 273-ФЗ \"Об образовании в Российской Федерации\""]
[]
["5.2. Порядок информирования потенциальных потребителей муниципальной услуги"]
[]
["Способ информирования ",null,"Состав размещаемой информации ",null,"Частота обновления информации"]
[1,null,2,null,3]
["Размещение на официальном портале муниципального образования «Город Томск»",null,"Информация о муниципальных услугах, оказываемых в учреждении; итоговая аттестация выпускников; организация образовательного процесса в учреждении; организация предшкольного образования в учреждении",null,"Ежемесячно"]
["Размещение на официальном сайте учреждения",null,"Основные положения по организации образовательного процесса в образовательном учреждении",null,"Ежемесячно"]
[" Размещение на информационных стендах в учреждении",null,"Нормативно-правовое обеспечение образовательного процесса",null,"Ежегодно"]
["Консультации специалистами комитета по общему образованию департамента образования администрации Города Томска",null,"Информация об организации образовательного процесса в образовательном учреждении",null,"Постоянно"]
[]
[null,null,null,null,"Раздел  4  "]
["1. Наименование муниципальной услуги:",null,null,"Реализация основных общеобразовательных программ дошкольного образования",null,null,null,null,"Уникальный номер по базовому перечню"]
["2. Категории потребителей муниципальной услуги:",null,null,"дети-инвалиды; возраст обучающихся: от 1 года до 3 лет,дети-инвалиды; дети-инвалиды; возраст обучающихся: от 3 года до 8 лет;обучающиеся за исключением детей-инвалидов и инвалидов; возраст обучающихся: от 1 лет до 3 лет; обучающиеся за исключением детей-инвалидов и инвалидов; возраст обучающихся: от 3 лет до 8 лет",null,null,null,null,"11.784.0"]
["3. Показатели, характеризующие объём и (или) качество муниципальных услуг"]
["3.1. Показатели, характеризующие качество муниципальных услуг"]
["Уникальный номер реестровой записи","Показатель, характеризующий содержание муниципальной услуги",null,null,"Показатель, характеризующий условия (формы) оказания муниципальной услуги","Показатель качества муниципальной услуги",null,null,"Значение показателя качества муниципальной услуги"]
[null,null,null,null,null,"наименование показателя","единица измерения по ОКЕИ"]
[null,null,null,null,null,null,"наименование","код","2016 год","2017 год","2018 год"]
[null,"Виды образовательных программ","Категория потребителей","Возраст обучающихся"]
[1,2,3,4,5,6,7,8,9,10,11]
["697010000131005760411784000300500201002100115","не указано","дети-инвалиды","\nот 1 года до 3 лет","Очная"," Результаты освоения воспитанниками реализуемой образовательной программы по ФГОС (качество дошкольного образования) ( %)\n","Процент",744,"нормативный вариант развития - 30 и более %, незначительные трудности в освоении программы - 60 и более %, выраженное несоответсвие развития - не более 10 %","нормативный вариант развития - 30 и более %, незначительные трудности в освоении программы - 60 и более %, выраженное несоответсвие развития - не более 10 %","нормативный вариант развития - 30 и более %, незначительные трудности в освоении программы - 60 и более %, выраженное несоответсвие развития - не более 10 %"]
[null,null,null,null,null,"Доля педагогических кадров, прошедших аттестацию (от общей численности  работников, подлежащих аттестации) (%)","Процент",744,100,100,100]
[null,null,null,null,null," Охват детей дополнительными образовательными услугами (от общей численности воспитанников) (%)","Процент",744,30,30,30]
["697010000131005760411784000300500301001100113",null,null," от 3 лет до 8 лет",null," Результаты освоения воспитанниками реализуемой образовательной программы по ФГОС (качество дошкольного образования) ( %)\n","Процент",744,"нормативный вариант развития - 30 и более %, незначительные трудности в освоении программы - 60 и более %, выраженное несоответсвие развития - не более 10 %","нормативный вариант развития - 30 и более %, незначительные трудности в освоении программы - 60 и более %, выраженное несоответсвие развития - не более 10 %","нормативный вариант развития - 30 и более %, незначительные трудности в освоении программы - 60 и более %, выраженное несоответсвие развития - не более 10 %"]
[null,null,null,null,null,"Доля педагогических кадров, прошедших аттестацию (от общей численности  работников, подлежащих аттестации) (%)","Процент",744,100,100,100]
[null,null,null,null,null," Охват детей дополнительными образовательными услугами (от общей численности воспитанников) (%)","Процент",744,30,30,30]
["697010000131005760411784000303900201001100112","не указано","обучающиеся за исключением детей-инвалидов и инвалидов","\nот 1 года до 3 лет",null," Результаты освоения воспитанниками реализуемой образовательной программы по ФГОС (качество дошкольного образования) ( %)\n","Процент",744,"нормативный вариант развития - 30 и более %, незначительные трудности в освоении программы - 60 и более %, выраженное несоответсвие развития - не более 10 %","нормативный вариант развития - 30 и более %, незначительные трудности в освоении программы - 60 и более %, выраженное несоответсвие развития - не более 10 %","нормативный вариант развития - 30 и более %, незначительные трудности в освоении программы - 60 и более %, выраженное несоответсвие развития - не более 10 %"]
[null,null,null,null,null,"Доля педагогических кадров, прошедших аттестацию (от общей численности  работников, подлежащих аттестации) (%)","Процент",744,100,100,100]
[null,null,null,null,null," Охват детей дополнительными образовательными услугами (от общей численности воспитанников) (%)","Процент",744,30,30,30]
[6.9701000013100503E+44,null,null," от 3 лет до 8 лет",null," Результаты освоения воспитанниками реализуемой образовательной программы по ФГОС (качество дошкольного образования) ( %)\n","Процент",744,"нормативный вариант развития - 30 и более %, незначительные трудности в освоении программы - 60 и более %, выраженное несоответсвие развития - не более 10 %","нормативный вариант развития - 30 и более %, незначительные трудности в освоении программы - 60 и более %, выраженное несоответсвие развития - не более 10 %","нормативный вариант развития - 30 и более %, незначительные трудности в освоении программы - 60 и более %, выраженное несоответсвие развития - не более 10 %"]
[null,null,null,null,null,"Доля педагогических кадров, прошедших аттестацию (от общей численности  работников, подлежащих аттестации) (%)","Процент",744,100,100,100]
[null,null,null,null,null," Охват детей дополнительными образовательными услугами (от общей численности воспитанников) (%)","Процент",744,30,30,30]
[]
["Допустимые отклонения от установленных показателей качества муниципальной услуги, в пределах которых муниципальное задание считается выполненным:",null,null,null,"±0%"]
[]
["3.2. Показатели, характеризующие объём муниципальных услуг"]
["Уникальный номер реестровой записи","Показатель, характеризующий содержание муниципальной услуги",null,null,"Показатель, характеризующий условия (формы) оказания муниципальной услуги","Показатель объёма муниципальной услуги",null,null,"Значение показателя объёма муниципальной услуги",null,null,"Среднегодовой размер платы (цена, тариф)"]
[null,null,null,null,null,"наименование показателя","единица измерения по ОКЕИ"]
[null,null,null,null,null,null,"наименование","код","2016 год","2017 год","2018 год","2016 год","2017 год","2018 год"]
[null,"Виды образовательных программ","Категория потребителей","Возраст обучающихся"]
[1,2,3,4,5,6,7,8,9,10,11,12,13,14]
[{"$f":"A192","v":"697010000131005760411784000300500201002100115"},"не указано","дети-инвалиды ","Возраст обучающихся: от 1 года до 3 лет","Очная","Число обучающихся (человек)","человек",792,{"$f":"#REF!","v":{"$error":"#REF!"}},{"$f":"I213","v":{"$error":"#REF!"}},{"$error":"#REF!"},0,0,0]
[{"$f":"A195","v":"697010000131005760411784000300500301001100113"},null,null,"Возраст обучающихся: от 3 лет до 8 лет",null,"Число обучающихся (человек)","человек",792,{"$f":"#REF!","v":{"$error":"#REF!"}},{"$error":"#REF!"},{"$error":"#REF!"},0,0,0]
[{"$f":"A198","v":"697010000131005760411784000303900201001100112"},null,"обучающиеся за исключением детей-инвалидов и инвалидов\n","Возраст обучающихся: от 1 года до 3 лет",null,"Число обучающихся (человек)","человек",792,{"$f":"#REF!","v":{"$error":"#REF!"}},{"$error":"#REF!"},{"$error":"#REF!"},0,0,0]
["697010000131005760411784000303900301000100112",null,null,"Возраст обучающихся: от 3 лет до 8 лет",null,"Число обучающихся (человек)","человек",792,{"$f":"#REF!","v":{"$error":"#REF!"}},{"$error":"#REF!"},{"$error":"#REF!"},0,0,0]
[]
["Допустимые отклонения от установленных показателей объёма муниципальной услуги, в пределах которых муниципальное задание считается выполненным:",null,null,null,"±5%"]
[]
["4.Нормативные правовые акты,устанавливающие размер платы (цену,тариф) либо порядок её установления"]
[]
["Нормативный правовой акт"]
["вид","принявший орган","дата","номер","наименование"]
[]
["5. Порядок оказания муниципальной услуги "]
["5.1.Нормативные правовые акты , регулирующие порядок оказания муниципальной услуги "]
["Приказ Минобрнауки России от 30.08.2013 № 1014 \"Об утверждении Порядка организации и осуществления образовательной деятельности по основным общеобразовательным программам - образовательным программам дошкольного образования\"; \nПриказ Минобрнауки России от 17.10.2013 № 1155 \"Об утвержднии федерального государственного образовательного стандарта дошкольного образования\"; \nФедеральный закон от 06.10.2003 № 131-ФЗ \"Об общих принципах организации местного самоуправления в Российской Федерации\"; Федеральный закон от 06.10.1999 № 184-ФЗ \"Об общих принципах организации законодательных (представительных) и исполнительных органов государственной власти субъектов Российской Федерации\"; \nФедеральный закон от 30.12.2012 № 273-ФЗ \"Об образовании в Российской Федерации\""]
[]
["5.2. Порядок информирования потенциальных потребителей муниципальной услуги"]
[]
["Способ информирования ",null,"Состав размещаемой информации ",null,"Частота обновления информации"]
[1,null,2,null,3]
["Размещение на официальном портале муниципального образования «Город Томск»",null,"Информация о муниципальных услугах, оказываемых в учреждении; итоговая аттестация выпускников; организация образовательного процесса в учреждении; организация предшкольного образования в учреждении",null,"Ежемесячно"]
["Размещение на официальном сайте учреждения",null,"Основные положения по организации образовательного процесса в образовательном учреждении",null,"Ежемесячно"]
[" Размещение на информационных стендах в учреждении",null,"Нормативно-правовое обеспечение образовательного процесса",null,"Ежегодно"]
["Консультации специалистами комитета по общему образованию департамента образования администрации Города Томска",null,"Информация об организации образовательного процесса в образовательном учреждении",null,"Постоянно"]
[]
[null,null,null,null,"Раздел  5  "]
["1. Наименование муниципальной услуги:",null,null,"Присмотр и уход",null,null,null,null,"Уникальный номер по базовому перечню"]
["2. Категории потребителей муниципальной услуги:",null,null,"дети-инвалиды; возраст обучающихся: от 1 года до 3 лет,дети-инвалиды; дети-инвалиды; возраст обучающихся: от 3 года до 8 лет;обучающиеся за исключением детей-инвалидов и инвалидов; возраст обучающихся: от 1 лет до 3 лет; обучающиеся за исключением детей-инвалидов и инвалидов; возраст обучающихся: от 3 лет до 8 лет",null,null,null,null,"11.785.0"]
["3. Показатели, характеризующие объём и (или) качество муниципальных услуг"]
["3.1. Показатели, характеризующие качество муниципальных услуг"]
["Уникальный номер реестровой записи","Показатель, характеризующий содержание муниципальной услуги",null,"Показатель, характеризующий условия (формы) оказания муниципальной услуги","Показатель качества муниципальной услуги",null,null,"Значение показателя качества муниципальной услуги"]
[null,null,null,null,"наименование показателя","единица измерения по ОКЕИ",null,"2016 год","2017 год","2018 год"]
[null,null,null,null,null,"наименование","код"]
[null,"Категория потребителей","Возраст обучающихся"]
[1,2,3,4,5,6,7,8,9,10]
["697010000131005760411785000500200009000100112 "," дети-инвалиды ","\nот 1 года до 3 лет","Не указано"," Отсутствие нарушений, связанных с предоставлением питания детей (шт.)\n","штука",796,0,0,0]
[null,null,null,null,"Отсутствие случаев детского травматизма(шт.)\n","штука",796,0,0,0]
[null,null,null,null,"Отсутствие обоснованных жалоб на качество предоставления услуги (шт.)\n\n","штука",796,0,0,0]
["697010000131005760411785000500300009008100112 ",null," от 3 лет до 8 лет",null," Отсутствие нарушений, связанных с предоставлением питания детей (шт.)\n","штука",796,0,0,0]
[null,null,null,null,"Отсутствие случаев детского травматизма (шт.)\n","штука",796,0,0,0]
[null,null,null,null,"Отсутствие обоснованных жалоб на качество предоставления услуги (шт.)\n\n","штука",796,0,0,0]
["697010000131005760411785004300200009004100113 ","обучающиеся за исключением детей-инвалидов и инвалидов\n","от 1 года до 3 лет","Не указано"," Отсутствие нарушений, связанных с предоставлением питания детей (шт.)\n","штука",796,0,0,0]
[null,null,null,null,"Отсутствие случаев детского травматизма (шт.)\n","штука",796,0,0,0]
[null,null,null,null,"Отсутствие обоснованных жалоб на качество предоставления услуги (шт.)\n\n","штука",796,0,0,0]
["697010000131005760411785004300300009002100118 ",null," от 3 лет до 8 лет",null," Отсутствие нарушений, связанных с предоставлением питания детей (шт.)\n","штука",796,0,0,0]
[null,null,null,null,"Отсутствие случаев детского травматизма (шт.)\n","штука",796,0,0,0]
[null,null,null,null,"Отсутствие обоснованных жалоб на качество предоставления услуги (шт.)\n\n","штука",796,0,0,0]
[]
["Допустимые отклонения от установленных показателей качества муниципальной услуги, в пределах которых муниципальное задание считается выполненным:",null,null,null,"±0%"]
[]
["3.2. Показатели, характеризующие объём муниципальных услуг"]
["Уникальный номер реестровой записи","Показатель, характеризующий содержание муниципальной услуги",null,"Показатель, характеризующий условия (формы) оказания муниципальной услуги","Показатель объёма муниципальной услуги",null,null,"Значение показателя объёма муниципальной услуги",null,null,"Среднегодовой размер платы (цена, тариф)"]
[null,null,null,null,"наименование показателя","единица измерения по ОКЕИ"]
[null,null,null,null,null,"наименование","код","2016 год","2017 год","2018 год","2016 год","2017 год","2018 год"]
[null,"Категория потребителей","Возраст обучающихся"]
[1,2,3,4,5,6,7,8,9,10,11,12,13]
[{"$f":"A248","v":"697010000131005760411785000500200009000100112 "}," дети-инвалиды; ","\n от 1 года до 3 лет","Не указано","Число детей (человек)","человек",792,{"$f":"#REF!","v":{"$error":"#REF!"}},{"$f":"H269","v":{"$error":"#REF!"}},{"$f":"I269","v":{"$error":"#REF!"}},0,0,0]
[{"$f":"A251","v":"697010000131005760411785000500300009008100112 "},null,"от 3 лет до 8 лет",null,"Число детей (человек)","человек",792,{"$f":"#REF!","v":{"$error":"#REF!"}},{"$error":"#REF!"},{"$error":"#REF!"},0,0,0]
[{"$f":"A254","v":"697010000131005760411785004300200009004100113 "},"обучающиеся за исключением детей-инвалидов и инвалидов;\n",": от 1 года до 3 лет",null,"Число детей (человек)","человек",792,{"$f":"#REF!","v":{"$error":"#REF!"}},{"$error":"#REF!"},{"$error":"#REF!"},"90 руб. в день","90 руб. в день","90 руб. в день"]
[{"$f":"A257","v":"697010000131005760411785004300300009002100118 "},null," от 3 лет до 8 лет",null,"Число детей (человек)","человек",792,{"$f":"#REF!","v":{"$error":"#REF!"}},{"$error":"#REF!"},{"$error":"#REF!"},"90 руб. в день","90 руб. в день","90 руб. в день"]
[]
["Допустимые отклонения от установленных показателей объёма муниципальной услуги, в пределах которых муниципальное задание считается выполненным:",null,null,null,"±5%"]
[]
["4.Нормативные правовые акты,устанавливающие размер платы (цену,тариф) либо порядок её установления"]
[]
["Нормативный правовой акт"]
["вид","принявший орган","дата","номер","наименование"]
["постановление"," администрация Города Томска","2014-12-30",1428,"О размере платы, взимаемой с родителей (законных представителей) за присмотр и уход за детьми, осваивающими образовательные программы дошкольного образования в муниципальных учреждениях муниципального образования «Город Томск», осуществляющих образовательную деятельность"]
["5. Порядок оказания муниципальной услуги "]
["5.1.Нормативные правовые акты , регулирующие порядок оказания муниципальной услуги "]
["Федеральный закон от 06.10.2003 № 131-ФЗ \"Об общих принципах организации местного самоуправления в Российской Федерации\"; \nФедеральный закон от 06.10.1999 № 184-ФЗ \"Об общих принципах организации законодательных (представительных) и исполнительных органов государственной власти субъектов Российской Федерации\"; \nФедеральный закон от 30.12.2012 № 273-ФЗ \"Об образовании в Российской Федерации\""]
[]
["5.2. Порядок информирования потенциальных потребителей муниципальной услуги"]
[]
["Способ информирования ",null,"Состав размещаемой информации ",null,"Частота обновления информации"]
[1,null,2,null,3]
["Размещение на официальном портале муниципального образования «Город Томск»",null,"Информация о муниципальных услугах, оказываемых в учреждении; итоговая аттестация выпускников; организация образовательного процесса в учреждении; организация предшкольного образования в учреждении",null,"Ежемесячно"]
["Размещение на официальном сайте учреждения",null,"Основные положения по организации образовательного процесса в образовательном учреждении",null,"Ежемесячно"]
[" Размещение на информационных стендах в учреждении",null,"Нормативно-правовое обеспечение образовательного процесса",null,"Ежегодно"]
["Консультации специалистами комитета по общему образованию департамента образования администрации Города Томска",null,"Информация об организации образовательного процесса в образовательном учреждении",null,"Постоянно"]
[]
[null,null,null,null,"Раздел  6  "]
["1. Наименование муниципальной услуги:",null,null,"Реализация дополнительных общеразвивающих программ",null,null,null,null,"Уникальный номер по базовому перечню"]
["2. Категории потребителей муниципальной услуги:",null,null,"физические лица",null,null,null,null,"11.Г42.0"]
["3. Показатели, характеризующие объём и (или) качество муниципальных услуг"]
["3.1. Показатели, характеризующие качество муниципальных услуг"]
["Уникальный номер реестровой записи","Показатель, характеризующий содержание муниципальной услуги",null,null,"Показатель, характеризующий условия (формы) оказания муниципальной услуги","Показатель качества муниципальной услуги",null,null,"Значение показателя качества муниципальной услуги"]
[null,null,null,null,null,"наименование показателя","единица измерения по ОКЕИ",null,"2016 год","2017 год","2018 год"]
[null,"Категория потребителей","Виды образовательных программ","Направленность образовательной программы",null,null,"наименование","код"]
[1,2,3,4,5,6,7,8,9,10,11]
["697010000131005760411Г42001000300101003100116 ","не указано","не указано"," техническая","Очная","Сохранность контингента обучающихся от первоначального комплектования (суммарно):- при реализации программ в течение 1-2-х лет; - при реализации программ более 2-х лет (%) \n","Процент",744,"80 и более %;                 75 и более %","80 и более %;                 75 и более %","80 и более %;                 75 и более %"]
[null,null,null,null,null,"Доля педагогических кадров, прошедших аттестацию (от общей численности работников, подлежащих аттестации) (%)\n","Процент",744,100,100,100]
[null,null,null,null,null,"Доля обучающихся, принимающих участие в конкурсах, выставках, фестивалях, спортивных мероприятиях различного уровня (%)\n\n\n","Процент",744,"не менее 41% от контингента в течение календарного года","не менее 41% от контингента в течение календарного года","не менее 41% от контингента в течение календарного года"]
["697010000131005760411Г42001000300201002100114 ",null,null," естественнонаучная",null,"Сохранность контингента обучающихся от первоначального комплектования (суммарно):- при реализации программ в течение 1-2-х лет; - при реализации программ более 2-х лет (%) \n","Процент",744,"80 и более %;                 75 и более %","80 и более %;                 75 и более %","80 и более %;                 75 и более %"]
[null,null,null,null,null,"Доля педагогических кадров, прошедших аттестацию (от общей численности работников, подлежащих аттестации) (%)\n","Процент",744,100,100,100]
[null,null,null,null,null,"Доля обучающихся, принимающих участие в конкурсах, выставках, фестивалях, спортивных мероприятиях различного уровня (%)\n\n\n","Процент",744,"не менее 41% от контингента в течение календарного года","не менее 41% от контингента в течение календарного года","не менее 41% от контингента в течение календарного года"]
["697010000131005760411Г42001000300301001100115 ",null,null,"физкультурно-спортивная",null,"Сохранность контингента обучающихся от первоначального комплектования (суммарно):- при реализации программ в течение 1-2-х лет; - при реализации программ более 2-х лет (%) \n","Процент",744,"80 и более %;                 75 и более %","80 и более %;                 75 и более %","80 и более %;                 75 и более %"]
[null,null,null,null,null,"Доля педагогических кадров, прошедших аттестацию (от общей численности работников, подлежащих аттестации) (%)\n","Процент",744,100,100,100]
[null,null,null,null,null,"Доля обучающихся, принимающих участие в конкурсах, выставках, фестивалях, спортивных мероприятиях различного уровня (%)\n\n\n","Процент",744,"не менее 41% от контингента в течение календарного года","не менее 41% от контингента в течение календарного года","не менее 41% от контингента в течение календарного года"]
["697010000131005760411Г42001000300401000100116 ",null,null,"художественная",null,"Сохранность контингента обучающихся от первоначального комплектования (суммарно):- при реализации программ в течение 1-2-х лет; - при реализации программ более 2-х лет (%) \n","Процент",744,"80 и более %;                 75 и более %","81 и более %;                 75 и более %","82 и более %;                 75 и более %"]
[null,null,null,null,null,"Доля педагогических кадров, прошедших аттестацию (от общей численности работников, подлежащих аттестации) (%)\n","Процент",744,100,100,100]
[null,null,null,null,null,"Доля обучающихся, принимающих участие в конкурсах, выставках, фестивалях, спортивных мероприятиях различного уровня (%)\n\n\n","Процент",744,"не менее 41% от контингента в течение календарного года","не менее 41% от контингента в течение календарного года","не менее 41% от контингента в течение календарного года"]
["697010000131005760411Г42001000300501009100115 ",null,null,"туристско-краеведческая",null,"Сохранность контингента обучающихся от первоначального комплектования (суммарно):- при реализации программ в течение 1-2-х лет; - при реализации программ более 2-х лет (%) \n","Процент",744,"80 и более %;                 75 и более %","80 и более %;                 75 и более %","80 и более %;                 75 и более %"]
[null,null,null,null,null,"Доля педагогических кадров, прошедших аттестацию (от общей численности работников, подлежащих аттестации) (%)\n","Процент",744,100,100,100]
[null,null,null,null,null,"Доля обучающихся, принимающих участие в конкурсах, выставках, фестивалях, спортивных мероприятиях различного уровня (%)\n\n\n","Процент",744,"не менее 41% от контингента в течение календарного года","не менее 41% от контингента в течение календарного года","не менее 41% от контингента в течение календарного года"]
["697010000131005760411Г42001000300601008100115 ",null,null,"cоциально-педагогическая",null,"Сохранность контингента обучающихся от первоначального комплектования (суммарно):- при реализации программ в течение 1-2-х лет; - при реализации программ более 2-х лет (%) \n","Процент",744,"80 и более %;                 75 и более %","80 и более %;                 75 и более %","80 и более %;                 75 и более %"]
[null,null,null,null,null,"Доля педагогических кадров, прошедших аттестацию (от общей численности работников, подлежащих аттестации) (%)\n","Процент",744,100,100,100]
[null,null,null,null,null,"Доля обучающихся, принимающих участие в конкурсах, выставках, фестивалях, спортивных мероприятиях различного уровня (%)\n\n\n","Процент",744,"не менее 41% от контингента в течение календарного года","не менее 41% от контингента в течение календарного года","не менее 41% от контингента в течение календарного года"]
[]
["Допустимые отклонения от установленных показателей качества муниципальной услуги, в пределах которых муниципальное задание считается выполненным:",null,null,null,"±0%"]
[]
["3.2. Показатели, характеризующие объём муниципальных услуг"]
["Уникальный номер реестровой записи","Показатель, характеризующий содержание муниципальной услуги",null,null,"Показатель, характеризующий условия (формы) оказания муниципальной услуги","Показатель объёма муниципальной услуги",null,null,"Значение показателя объёма муниципальной услуги",null,null,"Среднегодовой размер платы (цена, тариф)"]
[null,null,null,null,null,"наименование показателя","единица измерения по ОКЕИ"]
[null,null,null,null,null,null,"наименование","код","2016 год","2017 год","2018 год","2016 год","2017 год","2018 год"]
[null,"Категория потребителей","Виды образовательных программ","Направленность образовательной программы"]
[1,2,3,4,5,6,7,8,9,10,11,12,13,14]
[{"$f":"A303","v":"697010000131005760411Г42001000300101003100116 "},"\n","\n","техническая","Очная","Число человеко-часов пребывания (человеко-час)","человеко-час",539,{"$f":"#REF!","v":{"$error":"#REF!"}},{"$f":"I331","v":{"$error":"#REF!"}},{"$f":"J331","v":{"$error":"#REF!"}},0,0,0]
[{"$f":"A306","v":"697010000131005760411Г42001000300201002100114 "},null,null,"естественнонаучная",null,"Число человеко-часов пребывания (человеко-час)","человеко-час",539,{"$f":"#REF!","v":{"$error":"#REF!"}},{"$f":"I331","v":{"$error":"#REF!"}},{"$error":"#REF!"},0,0,0]
[{"$f":"A309","v":"697010000131005760411Г42001000300301001100115 "},null,null,"физкультурно-спортивная",null,"Число человеко-часов пребывания (человеко-час)","человеко-час",539,{"$f":"#REF!","v":{"$error":"#REF!"}},{"$error":"#REF!"},{"$error":"#REF!"},0,0,0]
[{"$f":"A312","v":"697010000131005760411Г42001000300401000100116 "},null,null,"художественная",null,"Число человеко-часов пребывания (человеко-час)","человеко-час",539,{"$f":"#REF!","v":{"$error":"#REF!"}},{"$error":"#REF!"},{"$error":"#REF!"},0,0,0]
[{"$f":"A315","v":"697010000131005760411Г42001000300501009100115 "},null,null,"туристско-краеведческая",null,"Число человеко-часов пребывания (человеко-час)","человеко-час",539,{"$f":"#REF!","v":{"$error":"#REF!"}},{"$f":"I336","v":0},{"$f":"J336","v":0},0,0,0]
[{"$f":"A318","v":"697010000131005760411Г42001000300601008100115 "},null,null,"cоциально-педагогическая",null,"Число человеко-часов пребывания (человеко-час)","человеко-час",539,{"$f":"#REF!","v":{"$error":"#REF!"}},{"$f":"I336","v":0},{"$f":"J336","v":0},0,0,0]
[]
["Допустимые отклонения от установленных показателей объёма муниципальной услуги, в пределах которых муниципальное задание считается выполненным:",null,null,null,"±10%"]
[]
["4.Нормативные правовые акты,устанавливающие размер платы (цену,тариф) либо порядок её установления"]
[]
["Нормативный правовой акт"]
["вид","принявший орган","дата","номер","наименование"]
[]
["5. Порядок оказания муниципальной услуги "]
["5.1.Нормативные правовые акты , регулирующие порядок оказания муниципальной услуги "]
["Приказ Минобрнауки России от 30.08.2013 № 1008 \"Об утверждении Порядка организации и осуществления образовательной деятельности по дополнительным общеобразовательным программам\"; \nФедеральный закон от 06.10.2003 № 131-ФЗ \"Об общих принципах организации местного самоуправления в Российской Федерации\"; \nФедеральный закон от 06.10.1999 № 184-ФЗ \"Об общих принципах организации законодательных (представительных) и исполнительных органов государственной власти субъектов Российской Федерации\"; Федеральный закон от 30.12.2012 № 273-ФЗ \"Об образовании в Российской Федерации\""]
[]
["5.2. Порядок информирования потенциальных потребителей муниципальной услуги"]
[]
["Способ информирования ",null,"Состав размещаемой информации ",null,"Частота обновления информации"]
[1,null,2,null,3]
["Размещение на официальном портале муниципального образования «Город Томск»",null,"Информация о муниципальных услугах, оказываемых в учреждении; итоговая аттестация выпускников; организация образовательного процесса в учреждении; организация предшкольного образования в учреждении",null,"Ежемесячно"]
["Размещение на официальном сайте учреждения",null,"Основные положения по организации образовательного процесса в образовательном учреждении",null,"Ежемесячно"]
[" Размещение на информационных стендах в учреждении",null,"Нормативно-правовое обеспечение образовательного процесса",null,"Ежегодно"]
["Консультации специалистами комитета по общему образованию департамента образования администрации Города Томска",null,"Информация об организации образовательного процесса в образовательном учреждении",null,"Постоянно"]
[]
[null,null,null,null,"Раздел  7  "]
["1. Наименование муниципальной услуги:",null,null,"Организация отдыха детей и молодежи",null,null,null,null,"Уникальный номер по базовому перечню"]
["2. Категории потребителей муниципальной услуги:",null,null,"физические лица",null,null,null,null,"10.028.0"]
["3. Показатели, характеризующие объём и (или) качество муниципальных услуг"]
["3.1. Показатели, характеризующие качество муниципальных услуг"]
["Уникальный номер реестровой записи","Показатель, характеризующий содержание муниципальной услуги","Показатель, характеризующий условия (формы) оказания муниципальной услуги","Показатель качества муниципальной услуги",null,null,"Значение показателя качества муниципальной услуги"]
[null,null,null,"наименование показателя","единица измерения по ОКЕИ"]
[null,null,null,null,"наименование","код","2016 год","2017 год","2018 год"]
[1,2,3,4,5,6,7,8,9]
["697010000131005760410028000000000002005101114 ",null,"В каникулярное время с дневным пребыванием"," Сохранность контингента в течение смены в лагерях на базе муниципальных бюджетных и автономных образовательных учреждений (фактическое количество дето-дней / плановое количество дето-дней * 100%) (%)\n","Процент",744,"Уровни эффективности: высокий - от 95% до 100%, достаточный - от 85% до 95%, низкий - менее 85%","Уровни эффективности: высокий - от 95% до 100%, достаточный - от 85% до 95%, низкий - менее 85%","Уровни эффективности: высокий - от 95% до 100%, достаточный - от 85% до 95%, низкий - менее 85%"]
[null,null,null,"Отсутствие обоснованных жалоб на качество предоставления услуги (шт); \n","Штука",796,0,0,0]
[null,null,null,"Укомплектованность педагогическими кадрами (от планового количества ставок) (%)\n\n","Процент",744,100,100,100]
[null,null,null," Доля педагогических кадров с высшим образованием в загородных лагерях (от общей численности педагогических работников, осуществляющих отдых детей в каникулярное время) (%)\n","Процент",744,"90 и более %","90 и более %","90 и более %"]
["697010000131005760410028000000000001006101116 ",null,"в каникулярное время с круглосуточным пребыванием"," Сохранность контингента в течение смены в лагерях на базе муниципальных бюджетных и автономных образовательных учреждений (фактическое количество дето-дней / плановое количество дето-дней * 100%) (%)\n","Процент",744,"Уровни эффективности: высокий - от 95% до 100%, достаточный - от 85% до 95%, низкий - менее 85%","Уровни эффективности: высокий - от 95% до 100%, достаточный - от 85% до 95%, низкий - менее 85%","Уровни эффективности: высокий - от 95% до 100%, достаточный - от 85% до 95%, низкий - менее 85%"]
[null,null,null,"Отсутствие обоснованных жалоб на качество предоставления услуги (шт); \n","Штука",796,0,0,0]
[null,null,null,"Укомплектованность педагогическими кадрами (от планового количества ставок) (%)\n\n","Процент",744,100,100,100]
[null,null,null," Доля педагогических кадров с высшим образованием в загородных лагерях (от общей численности педагогических работников, осуществляющих отдых детей в каникулярное время) (%)\n","Процент",744,"90 и более %","90 и более %","90 и более %"]
[]
["Допустимые отклонения от установленных показателей качества муниципальной услуги, в пределах которых муниципальное задание считается выполненным:",null,null,null,"±0%"]
[]
["3.2. Показатели, характеризующие объём муниципальных услуг"]
["Уникальный номер реестровой записи","Показатель, характеризующий содержание муниципальной услуги","Показатель, характеризующий условия (формы) оказания муниципальной услуги","Показатель объёма муниципальной услуги",null,null,"Значение показателя объёма муниципальной услуги",null,null,"Среднегодовой размер платы (цена, тариф)"]
[null,null,null,"наименование показателя","единица измерения по ОКЕИ"]
[null,null,null,null,"наименование","код","2016 год","2017 год","2018 год","2016 год","2017 год","2018 год"]
[1,2,3,4,5,6,7,8,9,10,11,12]
[{"$f":"A366","v":"697010000131005760410028000000000002005101114 "},null,"В каникулярное время с дневным пребыванием","Число человеко-дней пребывания (человеко-день)","человеко-день",540,{"$f":"#REF!","v":{"$error":"#REF!"}},{"$f":"G382","v":{"$error":"#REF!"}},{"$f":"H382","v":{"$error":"#REF!"}}]
[{"$f":"A370","v":"697010000131005760410028000000000001006101116 "},null,"в каникулярное время с круглосуточным пребыванием","Число человеко-дней пребывания (человеко-день)","человеко-день",540,{"$f":"#REF!","v":{"$error":"#REF!"}},{"$f":"G383","v":{"$error":"#REF!"}},{"$f":"H383","v":{"$error":"#REF!"}}]
[]
["Допустимые отклонения от установленных показателей объёма муниципальной услуги, в пределах которых муниципальное задание считается выполненным:",null,null,null,"±5%"]
[]
["4.Нормативные правовые акты,устанавливающие размер платы (цену,тариф) либо порядок её установления"]
[]
["Нормативный правовой акт"]
["вид","принявший орган","дата","номер","наименование"]
[]
["5. Порядок оказания муниципальной услуги "]
["5.1.Нормативные правовые акты , регулирующие порядок оказания муниципальной услуги "]
["Федеральный закон от 06.10.2003 № 131-ФЗ \"Об общих принципах организации местного самоуправления в Российской Федерации\";\nФедеральный закон от 06.10.1999 № 184-ФЗ \"Об общих принципах организации законодательных (представительных) и исполнительных органов государственной власти субъектов Российской Федерации\";\nФедеральный закон от 30.12.2012 № 273-ФЗ \"Об образовании в Российской Федерации\""]
[]
["5.2. Порядок информирования потенциальных потребителей муниципальной услуги"]
[]
["Способ информирования ",null,"Состав размещаемой информации ",null,"Частота обновления информации"]
[1,null,2,null,3]
["Размещение на официальном портале муниципального образования «Город Томск»",null,"Информация о муниципальных услугах, оказываемых в учреждении; итоговая аттестация выпускников; организация образовательного процесса в учреждении; организация предшкольного образования в учреждении",null,"Ежемесячно"]
["Размещение на официальном сайте учреждения",null,"Основные положения по организации образовательного процесса в образовательном учреждении",null,"Ежемесячно"]
[" Размещение на информационных стендах в учреждении",null,"Нормативно-правовое обеспечение образовательного процесса",null,"Ежегодно"]
["Консультации специалистами комитета по общему образованию департамента образования администрации Города Томска",null,"Информация об организации образовательного процесса в образовательном учреждении",null,"Постоянно"]
[]
["Часть 2. Сведения о выполняемых работах"]
["1. Наименование  работы :Организация и проведение олимпиад, конкурсов, мероприятий, направленных на выявление и развитие у обучающихся интеллектуальных и творческих способностей, способностей к занятиям физической культурой и спортом, интереса к научной (научно-исследовательской) деятельности, творческой деятельности, физкультурно-спортивной деятельности",null,null,null,null,null,null,null,"Уникальный номер по базовому перечню"]
["2. Категории потребителей муниципальной услуги:  В интересах обществ (Физические и юридические лица )",null,null,null,null,null,null,null,"11.034.1"]
["3. Показатели, характеризующие объём и (или) качество работы"]
["3.1. Показатели, характеризующие качество работы"]
["Уникальный номер реестровой записи","Показатель, характеризующий содержание работы","Показатель, характеризующий условия (формы) выполнения работы","Показатель качества работы",null,null,"Значение показателя качества работы"]
[null,null,null,"наименование показателя","единица измерения по ОКЕИ"]
[null,null,null,null,"наименование","код","2016 год","2017 год","2018 год"]
[1,2,3,4,5,6,7,8,9]
["697010000131005760411034100000000000005101101",null,null,"Отсутствие нарушений организации общегородских (отраслевых) мероприятий (шт.)","штука",796,0,0,0]
[null,null,null,"Отсутствие обоснованных жалоб по организации общегородских (отраслевых) мероприятий (шт.)","штука",796,0,0,0]
[]
["Допустимые отклонения от установленных показателей качества работы, в пределах которых муниципальное задание считается выполненным",null,null,null,"±0%"]
[]
["3.2. Показатели, характеризующие объём работы"]
["Уникальный номер реестровой записи","Показатель, характеризующий содержание работы","Показатель, характеризующий условия (формы) выполнения работы","Показатель объёма муниципальной услуги",null,null,"Значение показателя объёма работы"]
[null,null,null,"наименование показателя","единица измерения по ОКЕИ"]
[null,null,null,null,"наименование","код","2016 год","2017 год","2018 год"]
[1,2,3,4,5,6,7,8,9]
[{"$f":"A414","v":"697010000131005760411034100000000000005101101"},null,null,"Количество мероприятий (единица)","Единица ",642,{"$f":"#REF!","v":{"$error":"#REF!"}},{"$f":"G425","v":0},{"$f":"H425","v":0}]
[]
["Допустимые отклонения от установленных показателей объёма работы, в пределах которых муниципальное задание считается выполненным",null,null,null,"±5%"]
[]
["Часть 3. прочие сведения о муниципальном задании"]
["1.Основания для досрочного прекращения муниципального задания"]
["Ликвидация муниципального учреждения, осуществляющего оказание муниципальной услуги, или реорганизация путем присоединения к другому учреждению\nПерераспределение полномочий, повлекшее исключение из компетенции муниципального учреждения права по оказанию муниципальной услуги\nИсключение муниципальной услуги из консолидированного перечня\nИзменение законодательства РФ, исключающего расходные обязательства муниципального образования \"Город Томск\" как основание оказания услуг муниципальными учреждениями\nИные предусмотренные правовыми актами случаи, влекущие за собой невозможность оказания муниципальной услуги"]
[]
["2. Порядок контроля за исполнением муниципального задания"]
["Формы контроля",null,null,"Периодичность ",null,null,"Наименование органов администрации Города Томска, осуществляющих контроль"]
[1,null,null,2,null,null,3]
["Выездная проверка",null,null,"согласно плану-графику проверок департамента образования администрации Города Томска и/или ЦБ департамента образования администрации Города Томска",null,null,"Департамент образования администрации Города Томска  и/или ЦБ департамента образования администрации Города Томска"]
["Контроль посредством проверки предоставляемой отчетности об исполнении муниципального задания",null,null,"согласно действующему постановлению администрации Города Томска"]
[]
["3.Требования к отчетности об исполнении муниципального задания"]
["3.1.Форма отчета об исполнении муниципального задания (Приложения 2, 3 к муниципальному заданию)"]
[]
["3.2.Сроки представления отчетов об исполнении муниципального задания"]
["Учреждение предоставляет в департамент образования администрации Города Томска:"]
["1) отчет о выполнении муниципального задания за год муниципальными учреждениями по форме приложения 2 к форме муниципального задания представляется муниципальными учреждениями в уполномоченный орган (ГРБС) на бумажном носителе и в электронном виде посредством электронной системы «Он-лайн Своды»  в срок до 15 января, следующего за отчетным. Годовой отчет утверждается руководителем уполномоченного органа (ГРБС);"]
["2) отчет о выполнении муниципального задания за квартал муниципальными учреждениями по форме приложения 3 к форме муниципального задания представляется муниципальными учреждениями в уполномоченный орган (ГРБС) на бумажном носителе и в электронном виде посредством электронной системы «Он-лайн Своды» срок до 15  числа, следующего за отчетным."]
[]
["3.3.Иные требования к отчетности об исполнении муниципального задания"]
["Учреждение обязано предоставлять департаменту образования администрации Города Томска иные документы, необходимые для обеспечения контроля за организацией образовательного учреждения и за расходованием бюджетных средств, а также бухгалтерскую отчетность в сроки и по формам в соответствии с действующим законодательством. Муниципальное бюджетное или автономное учреждение предоставляет уполномоченному органу (ГРБС) предварительный отчет об исполнении муниципального задания за соответствующий финансовый год в срок до 01 декабря соответствующего финансового года. "]
["Если показатели объема, указанные в предварительном отчете, меньше показателей, установленных в муниципальном задании, то соответствующие средства субсидии подлежат перечислению в бюджет в соответствии с бюджетным законодательством Российской Федерации."]
[]
["4.Иная информация, необходимая для исполнения (контроля за исполнением) муниципального задания"]
["Сэкономленные при выполнении муниципального задания в части оказания услуг средства в случае необходимости могут быть направлены на выполнение муниципального задания в части возмещения нормативных затрат на оплату налогов, в качестве объекта налогообложения по которым признается недвижимое и особо ценное движимое имущество, закрепленное за учреждением или приобретенное учреждением за счет средств, выделенных ему уполномоченным органом на приобретение такого имущества, в том числе земельных участков. И наоборот, экономия от выполнения муниципального задания в части возмещения нормативных затрат на оплату налогов, в качестве объекта налогообложения по которым признается недвижимое и особо ценное движимое имущество, закрепленное за учреждением или приобретенное учреждением за счет средств, выделенных ему уполномоченным органом на приобретение такого имущества, в том числе земельных участков, в случае необходимости может быть направлена на выполнение муниципального задания в части оказания услуг."]